Cogmind - Beta 17 @@@ ROGUE MODE // 2026.07.04 @ 13:09:42 Player: Bikerider58 Result: Destroyed by G-73 Enforcer with Phase Gun Performance ------------- Evolutions (9) 4500 Regions Visited (30) 6000 Robots Destroyed (685) 3425 Value Destroyed (37703) 37703 Prototype IDs (31) 620 Alien Tech Used (0) 0 Bonus (33565) 33565 TOTAL SCORE: 85813 Bonus ------- High Alert Combat Kills 13354 Follower Combat Kills 3564 Entered Garrisons 2200 Used RIF Installer 6500 Built Enhanced Grunts 300 A7 Reached Mainframe 300 Met R17 at Cetus 500 Met R17 at Research 2000 Destroyed MAIN.C Guards 500 Met MAIN.C 5000 Hacked MAIN.C 300 Friendly Fire -953 Cogmind --------- Core Integrity 0/1600 Matter 294/300 Energy 99/100 System Corruption 52% Temperature Cool (9) Movement Core (50) Location -1/Command Parts ------- > --- POWER (3) -------- (None) > --- PROPULSION (6) --- (None) > --- UTILITY (10) ----- (None) > --- WEAPON (6) ------- (None) > --- INVENTORY (5) ---- Authchip [R/NC] Enhanced Nova Cannon Linear Accelerator Enhanced Hardcell Cannon Gamma Bomb Array Peak State ------------ > --- POWER ------------ Quantum Reactor Reinforced Quantum Reactor Reinforced Quantum Reactor > --- PROPULSION ------- Armored Heavy Treads Armored Heavy Treads Armored Heavy Treads > --- UTILITY ---------- Advanced Cooling System Advanced Cooling System Huge Storage Unit Advanced Salvage Targeting Computer Improved Kinecellerator Layered Heavy Armor Plating Graphene Brace Advanced Force Field Relay Coupler [NC] > --- WEAPON ----------- Heavy Machine Gun KE Penetrator Multirail Multirail Multirail Linear Accelerator > --- INVENTORY -------- Quantum Reactor Light Quantum Reactor Reinforced Quantum Reactor Reinforced Quantum Reactor Armored Heavy Treads Armored Heavy Treads Advanced Cooling System Energy Well Advanced Matter Compressor Advanced Force Field Advanced Point Defense System Authchip [R/NC] Improved Dynamic Insulation System High-powered Tractor Beam Enhanced Nova Cannon Enhanced Nova Cannon Multirail Multirail Multirail Enhanced Hardcell Cannon Gamma Bomb Array Gamma Bomb Array Advanced Remote Datajack [Rating: 206] Favorites ----------- Power Quantum Reactor Engine Improved Deuterium Engine Power Core Nuclear Core Reactor Quantum Reactor Propulsion Armored Heavy Treads Treads Armored Heavy Treads Wheel Compact Wheel Utility Huge Storage Unit Device Advanced Cooling System Storage Huge Storage Unit Processor Advanced Salvage Targeting Computer Hackware Relay Coupler [NC] Protection Light Regenerative Plating Weapon KE Penetrator Energy Gun Advanced Variable Charge Gun Energy Cannon Enhanced Nova Cannon Ballistic Gun KE Penetrator Ballistic Cannon Linear Accelerator Launcher Gamma Bomb Array Special Weapon Advanced Remote Datajack Impact Weapon Great Maul Slashing Weapon Katana Piercing Weapon Plasma Lance Build | -11 -10 -9 -9 -9 -9 -7 -7 -7 -7 -6 -6 -6 -6 -6 -6 -6 -5 -5 -4 -4 -3 -3 -2 -2 -2 -2 -1 -1 -1 -1 ------- Run | Yrd Mat Mat Sto Gar Rec Fac Gar Fac Gar Fac Gar Ext Cet Arc Hub Gar Fac Gar Fac Gar Res Gar Res Gar Res Gar Acc Gar Acc Com Slots Evolved 18 | . . 2 . . . 4 . . . 2 . . . . . . 2 . 2 . 2 . 2 . . . 2 . . . Power 2 | . . . . . . . . . . . . . . . . . 1 . 1 . . . . . . . . . . . Propulsion 4 | . . . . . . 1 . . . 1 . . . . . . 1 . . . 1 . . . . . . . . . Utility 8 | . . 1 . . . 2 . . . 1 . . . . . . . . 1 . . . 2 . . . 1 . . . Weapon 4 | . . 1 . . . 1 . . . . . . . . . . . . . . 1 . . . . . 1 . . . Parts Attached 399 | 7 4 17 7 11 4 8 17 5 9 17 19 15 9 6 1 22 9 10 2 18 5 8 3 11 18 24 8 58 26 21 Power 45 | 1 . 2 . 1 . . 2 1 2 . 3 3 1 . . . 1 . . 5 . 1 . 1 2 6 . 7 3 3 Engine 8 | 1 . 1 . . . . 1 1 1 . 2 1 . . . . . . . . . . . . . . . . . . Core 6 | . . 1 . 1 . . 1 . 1 . . 2 . . . . . . . . . . . . . . . . . . Reactor 31 | . . . . . . . . . . . 1 . 1 . . . 1 . . 5 . 1 . 1 2 6 . 7 3 3 Propulsion 82 | 2 1 8 2 3 4 . 3 . 1 4 8 4 3 2 . 3 . 1 . 3 1 1 . 3 5 4 1 7 5 3 Treads 74 | 2 . 5 2 3 3 . 2 . 1 4 8 3 2 2 . 3 . 1 . 3 1 1 . 3 5 4 1 7 5 3 Leg . | . . . . . . . . . . . . . . . . . . . . . . . . . . . . . . . Wheel 8 | . 1 3 . . 1 . 1 . . . . 1 1 . . . . . . . . . . . . . . . . . Hover . | . . . . . . . . . . . . . . . . . . . . . . . . . . . . . . . Flight . | . . . . . . . . . . . . . . . . . . . . . . . . . . . . . . . Utility 137 | 2 2 3 2 . . 4 4 4 3 6 3 4 2 2 . 13 5 5 2 7 2 2 3 4 5 7 3 19 11 8 Device 69 | 1 1 2 . . . 2 2 1 1 2 2 2 . 2 . 5 1 3 2 4 1 2 . 3 3 3 . 10 9 5 Storage 11 | 1 1 . . . . . . 1 . . . 1 . . . 1 . . . . 1 . . . . 2 . 1 . 2 Processor 9 | . . . 1 . . 1 1 1 . 1 . . . . . 1 1 2 . . . . . . . . . . . . Hackware 19 | . . . . . . . . . . 2 . . . . . 4 2 . . 1 . . 3 1 1 1 1 2 1 . Protection 29 | . . 1 1 . . 1 1 1 2 1 1 1 2 . . 2 1 . . 2 . . . . 1 1 2 6 1 1 Artifact . | . . . . . . . . . . . . . . . . . . . . . . . . . . . . . . . Weapon 135 | 2 1 4 3 7 . 4 8 . 3 7 5 4 3 2 1 6 3 4 . 3 2 4 . 3 6 7 4 25 7 7 Energy Gun 1 | . . . . . . . . . . . . . 1 . . . . . . . . . . . . . . . . . Energy Cannon 6 | . . . . . . . . . . 1 . . . . 1 1 . . . . 1 . . . 1 . . . . 1 Ballistic Gun 107 | 2 1 3 2 2 . 2 7 . 2 5 4 4 2 2 . 4 1 4 . 2 1 4 . 3 5 6 2 25 6 6 Ballistic Cannon 2 | . . . . . . . . . . . 1 . . . . . . . . . . . . . . . . . 1 . Launcher 10 | . . 1 . 2 . 1 1 . 1 . . . . . . . 1 . . . . . . . . 1 2 . . . Special Weapon 4 | . . . . 1 . . . . . 1 . . . . . . 1 . . 1 . . . . . . . . . . Impact Weapon 3 | . . . 1 1 . 1 . . . . . . . . . . . . . . . . . . . . . . . . Slashing Weapon 1 | . . . . 1 . . . . . . . . . . . . . . . . . . . . . . . . . . Piercing Weapon 1 | . . . . . . . . . . . . . . . . 1 . . . . . . . . . . . . . . Special Melee Weapon . | . . . . . . . . . . . . . . . . . . . . . . . . . . . . . . . Unidentified Prototypes 24 | . . . 1 . . 2 1 . . 1 1 1 4 . . 5 . 4 . . 1 . . . 1 . . 1 . 1 Corrupted Parts 5 | . . . . . . . . . . . . . 1 2 . . . . . . . . . . . . 1 . . 1 System Corruption 16 | . . . . . . . . . . . . . 1 3 . . . . . . . . . . . . 9 . . 3 Parts Lost 131 | . 2 4 . 1 . . 8 . 3 5 5 4 2 . . 1 . . . 8 . . . 2 3 5 1 33 17 27 Power 13 | . . . . 1 . . 1 . 1 . . . . . . . . . . 2 . . . . . . . 3 1 4 Propulsion 22 | . . 1 . . . . 2 . . 1 3 . . . . . . . . 2 . . . . . 1 . 4 3 5 Utility 42 | . 1 2 . . . . 1 . 1 1 1 . 1 . . . . . . 3 . . . 2 . 2 1 12 6 8 Weapon 54 | . 1 1 . . . . 4 . 1 3 1 4 1 . . 1 . . . 1 . . . . 3 2 . 14 7 10 Highest Loss Streak 20 | . 1 1 . 1 . . 6 . 1 4 3 3 2 . . 1 . . . 6 . . . 1 1 5 1 20 15 16 To Critical Strikes 1 | . . . . . . . . . . . . . 1 . . . . . . . . . . . . . . . . . Average Backups 21 | . 10 18 20 19 19 19 17 19 22 22 24 23 22 22 23 22 22 22 22 23 23 24 24 23 23 23 22 20 20 17 Power 1 | . . 1 1 . . . . 1 1 1 2 2 2 2 2 1 1 1 1 1 2 2 2 2 2 2 2 1 1 2 Propulsion 2 | . 2 6 5 5 4 4 4 3 3 2 2 2 2 1 2 1 2 2 2 1 2 2 2 2 2 1 1 2 2 1 Utility 9 | . 2 5 7 7 7 7 5 6 6 7 9 11 11 11 11 11 11 12 12 11 11 11 12 11 11 11 11 8 8 6 Weapon 6 | . 5 5 5 6 6 6 6 7 9 9 8 6 5 7 7 6 6 6 6 7 7 7 7 7 6 7 7 6 7 6 Tool/Special . | . . . . . . . . . . . . . . . . . . . . . . . . . . . . . . . Unused Backups 57 | . . 5 5 . 1 . 4 2 4 4 1 1 1 . 1 2 2 6 . 4 2 2 1 . 1 1 2 2 1 2 Power 9 | . . 1 . . . . . . 1 1 . . 1 . . . . . . 2 . . 1 . . . . 1 1 . Propulsion 11 | . . 1 1 . . . 3 . . 1 . . . . . . . 2 . 1 1 . . . . . 1 . . . Utility 19 | . . 1 2 . 1 . 1 2 1 2 . . . . 1 1 1 4 . . . . . . . . 1 . . 1 Weapon 16 | . . 2 2 . . . . . 2 . 1 1 . . . 1 . . . 1 1 2 . . 1 1 . . . 1 Tool/Special 2 | . . . . . . . . . . . . . . . . . 1 . . . . . . . . . . 1 . . Average Slot Usage (%) 89 | . 93 95 100 99 100 98 94 92 91 89 94 99 93 85 86 87 88 87 88 88 84 85 79 85 89 86 87 80 86 74 Engine 1 | . 14 5 . . . . 2 7 6 . 5 2 . . . . . . . . . . . . . . . . . . Core 1 | . . 5 11 10 11 7 4 . . 6 . 3 4 . . . . . . . . . . . . . . . . . Reactor 6 | . . . . . . . . . . . . . 1 6 6 6 11 11 15 14 14 14 13 13 13 12 12 11 11 10 Treads 14 | . 20 13 14 12 11 7 10 7 7 14 21 24 15 6 6 10 17 17 15 14 13 14 13 13 15 15 16 12 11 10 Wheel 2 | . 7 8 7 9 10 14 6 7 7 2 . . 3 6 6 3 . . . . . . . . . . . . . . Device 12 | . 8 12 . . . 6 4 7 7 11 13 12 13 12 13 9 10 5 9 13 14 14 13 17 20 20 15 17 22 18 Storage 6 | . 14 11 11 11 11 7 7 7 7 6 6 6 6 6 6 6 5 5 5 5 4 4 4 4 4 4 4 6 4 5 Processor 9 | . . . 10 11 11 7 8 7 7 12 13 13 13 13 13 13 11 16 15 15 14 14 13 8 8 8 8 4 4 4 Hackware 1 | . . . . . . . . . . . . . . . . 2 . . . 1 . . 1 6 3 . 3 1 8 3 Protection 5 | . . 5 11 11 11 14 16 15 14 6 6 6 6 6 6 5 5 5 5 . . . . . . 1 3 2 . 2 Ballistic Gun 24 | . 27 32 32 27 32 29 28 30 29 25 26 26 23 24 24 25 19 22 20 20 22 23 21 20 19 20 22 21 23 16 Peak Build Rating 206 | 7 10 20 26 26 25 36 57 63 70 87 85 82 101 103 102 109 127 139 149 150 163 172 178 182 180 185 184 194 200 206 Average Rating 111 | 5 7 16 25 25 24 33 45 58 64 79 77 77 87 100 100 101 120 136 144 140 160 170 169 176 170 175 179 171 180 173 On Entrance 100 | . 7 10 20 26 24 25 35 56 63 70 78 76 77 101 101 99 100 124 134 144 143 161 168 175 182 179 172 181 179 193 Avg Prop Armor Cover (%) 8 | . 11 7 7 7 8 5 8 9 9 9 . 11 10 10 8 9 3 4 . 4 . . . . . 4 4 . . 40 Naked Turns 1 | . . . . . . . . . . . . . . . . . . . . . . . . . . . . . . 1 Heaviest Build 248 | 15 54 67 67 61 61 76 80 121 125 139 135 132 131 130 136 134 169 170 185 180 175 183 182 185 195 204 213 242 237 248 Greatest Support 215 | 40 40 40 40 40 40 28 75 75 75 150 133 120 110 28 80 140 190 190 185 185 215 215 215 215 215 200 205 210 180 180 Greatest Overweight (x) 7 | 2 3 5 5 4 3 2 6 7 7 4 2 4 4 4 4 4 1 1 . 1 . . . . 1 1 1 3 1 3 Average Overweight (x) 1 | . 1 3 3 3 2 2 3 5 6 . . 1 3 4 3 2 . . . . . . . . . . . . 1 . Largest Inventory Capacity 25 | 8 20 20 20 20 20 20 20 25 25 25 25 25 25 25 25 25 25 25 25 25 25 25 25 25 25 25 25 25 25 25 Average Capacity 23 | 7 15 20 20 20 20 20 20 23 25 25 25 25 25 25 25 25 25 25 25 25 25 25 25 25 25 25 25 25 25 23 Most Carried 25 | 1 18 20 20 20 20 20 20 25 25 25 25 25 25 25 25 25 25 25 25 25 25 25 25 25 25 25 25 25 25 25 Average Carried 22 | . 10 18 19 19 19 19 18 21 24 23 24 24 24 24 25 24 24 24 24 24 24 24 25 24 24 24 24 22 23 18 Final Capacity 25 | 8 20 20 20 20 20 20 20 25 25 25 25 25 25 25 25 25 25 25 25 25 25 25 25 25 25 25 25 25 25 5 Final Carried 25 | 1 18 20 20 20 20 20 20 25 25 25 25 25 25 25 25 25 24 25 25 25 25 25 25 24 25 25 25 25 25 5 Class Distribution -------------------- 47% | Scavenger-Tank 15% | Scavenger-Executioner 14% | Scavenger-Gunner 6% | Gunner 5% | Botlord-Tank 4% | Tank 4% | Mutant Dominant Class ---------------- Mutant | -10/Materials Gunner | -9/Materials Gunner | -9/Storage Gunner | -9/Garrison Gunner | -9/Recycling Scavenger-Gunner | -7/Factory Scavenger-Tank | -7/Garrison Scavenger-Tank | -7/Factory Scavenger-Tank | -7/Garrison Scavenger-Tank | -6/Factory Scavenger-Tank | -6/Garrison Scavenger-Gunner | -6/Extension Scavenger-Gunner | -6/Cetus Scavenger-Tank | -6/Archives Scavenger-Tank | -6/Hub_04(d) Scavenger-Tank | -6/Garrison Scavenger-Tank | -5/Factory Scavenger-Tank | -5/Garrison Scavenger-Tank | -4/Factory Scavenger-Tank | -4/Garrison Scavenger-Tank | -3/Research Scavenger-Tank | -3/Garrison Scavenger-Tank | -2/Research Botlord-Tank | -2/Garrison Scavenger-Tank | -2/Research Scavenger-Tank | -2/Garrison Scavenger-Executioner | -1/Access Scavenger-Executioner | -1/Garrison Scavenger-Executioner | -1/Access Scavenger-Executioner | -1/Command Resources | -11 -10 -9 -9 -9 -9 -7 -7 -7 -7 -6 -6 -6 -6 -6 -6 -6 -5 -5 -4 -4 -3 -3 -2 -2 -2 -2 -1 -1 -1 -1 ----------- Run | Yrd Mat Mat Sto Gar Rec Fac Gar Fac Gar Fac Gar Ext Cet Arc Hub Gar Fac Gar Fac Gar Res Gar Res Gar Res Gar Acc Gar Acc Com Matter Collected 32496 | 283 399 675 787 623 267 98 1335 537 764 1502 1535 898 403 276 302 1449 579 1073 90 1432 488 1110 100 1465 2243 1457 1363 3524 2798 2641 Remotely 8196 | . . . . . . . . . . . 451 359 . . . 804 . 286 . 527 260 478 . 163 1448 338 . . 1389 1693 Salvage Created 44574 | 105 558 704 906 686 819 135 1508 383 1408 1839 2216 1340 441 203 232 1406 927 1632 90 3127 735 1921 100 2134 2770 2106 2792 4488 2773 4090 Parts 2381 | 9 46 52 57 44 33 9 78 25 79 72 132 60 21 14 13 78 36 98 6 144 36 116 2 127 195 96 132 228 161 182 Haulers Intercepted 10 | . 2 2 1 . . . . . . 2 . . . . . . . . . . 3 . . . . . . . . . Recyclers Shooed 24 | 1 . 2 . . 2 . . 2 . 7 . 2 . . . . 1 . . . 1 . . . 3 . . . . 3 Parts Field Recycled . | . . . . . . . . . . . . . . . . . . . . . . . . . . . . . . . Retrieved Matter . | . . . . . . . . . . . . . . . . . . . . . . . . . . . . . . . Parts Self-Destructed . | . . . . . . . . . . . . . . . . . . . . . . . . . . . . . . . Prevented . | . . . . . . . . . . . . . . . . . . . . . . . . . . . . . . . Parts Restored . | . . . . . . . . . . . . . . . . . . . . . . . . . . . . . . . Kills | -11 -10 -9 -9 -9 -9 -7 -7 -7 -7 -6 -6 -6 -6 -6 -6 -6 -5 -5 -4 -4 -3 -3 -2 -2 -2 -2 -1 -1 -1 -1 ------- Run | Yrd Mat Mat Sto Gar Rec Fac Gar Fac Gar Fac Gar Ext Cet Arc Hub Gar Fac Gar Fac Gar Res Gar Res Gar Res Gar Acc Gar Acc Com Combat Hostiles Destroyed 601 | . 14 18 21 30 4 2 28 6 31 18 33 12 5 1 3 23 12 24 1 30 2 28 1 24 31 30 31 63 25 50 Guns 519 | . 14 14 21 10 4 2 18 6 28 18 33 12 5 1 3 23 7 23 1 30 2 28 1 24 30 22 22 56 25 36 Cannons 4 | . . . . . . . . . . . . . . . . . . . . . . . . . . . . . . 4 AOE 66 | . . 4 . 20 . . 10 . 3 . . . . . . . 4 . . . . . . . 1 8 8 6 . 2 Classes Destroyed 24 | 3 6 1 1 1 . 1 1 1 . 2 . . . . . 1 . 3 . . 1 . . . . . . . 1 1 Worker 15 | 1 . . . . . . . . . 1 . 2 . . . . 1 . . . 1 . . . 1 . 1 . 1 6 Builder 13 | . 1 1 . . . . . . . 3 . . . . . . . . . . 2 . . . 5 . 1 . . . Tunneler 4 | 1 . 1 . . . 1 . 1 . . . . . . . . . . . . . . . . . . . . . . Hauler 10 | . 2 2 1 . . . . . . 2 . . . . . . . . . . 3 . . . . . . . . . Recycler 21 | 1 . . . . 7 . . . . 2 . 3 . . . . 1 . . . . . . . . . 2 . 3 2 Mechanic 1 | . . . . . . . . . . . . . . . . . . . . . . . . . . . . . 1 . Operator 9 | . 1 1 . . . . . . . . . . . 4 2 . . . . . 1 . . . . . . . . . Watcher 5 | . 1 . . . . . . . . 2 . . 2 . . . . . . . . . . . . . . . . . Swarmer 148 | . 6 10 4 15 . . 12 . 14 . . 2 . . . 2 . 9 . . . 13 . 3 3 10 7 29 3 6 Cutter 2 | . . . . . . . . . . . . . . . . 1 . . . 1 . . . . . . . . . . Saboteur 2 | . . . . . . . . . . . . . . . . . . 2 . . . . . . . . . . . . Grunt 200 | . 8 2 10 8 . . 4 2 12 5 19 3 . . . 14 8 3 . 13 . 8 1 8 9 12 15 10 7 19 Brawler 14 | . . . . 2 . . 1 . 1 . . . . . . 2 . . . . . . . . 2 2 . 2 . 2 Duelist 16 | . . . 1 . . . 2 . 1 . . . . . . . . . . 5 . . . 1 1 . 1 . 1 3 Protector 1 | . . . . . . . . . . . . . . . . . . . . . . . . . . . . . . 1 Sentry 78 | . . 6 6 5 4 1 5 2 1 1 7 5 . 1 2 . . 6 1 8 . 3 . 3 . 3 4 2 1 1 Specialist 11 | . . . . . . . . 2 . . 2 . . . . . . 1 . 1 . . . . . 1 . 4 . . Hunter 40 | . . . . . . . 1 . . 8 1 . . . 1 . . 1 . 3 2 . . 2 4 1 2 6 6 2 Programmer 65 | . . . . . . 1 3 . 2 2 3 1 . . . 2 4 1 . . . 3 . 5 10 2 2 7 5 12 Heavy 1 | . . . . . . . . . . 1 . . . . . . . . . . . . . . . . . . . . Behemoth 16 | . . . . . . . . . . 1 1 1 . . . 2 . . . 1 . 1 . 2 2 . . 3 2 . Cetus Guard 5 | . . . . . . . . . . . . . 5 . . . . . . . . . . . . . . . . . M Guard 2 | . . . . . . . . . . . . . . . . . . . . . . . . . . . . . . 2 Combat Programmer 2 | . . . . . . . . . . . . . . . . . . . . . . . . . . . . . . 2 Striker 1 | . . . . . . . . . . . . . . . . . . 1 . . . . . . . . . . . . Executioner 1 | . . . . . . . . . . . . . . . . . . 1 . . . . . . . . . . . . Thug 1 | . . . . . . . . . . . . 1 . . . . . . . . . . . . . . . . . . Revision 1 | . . . . . . . . . . . . . . . . . . . . . 1 . . . . . . . . . Best Kill Streak 14 | 2 4 6 4 11 3 1 5 4 9 9 7 4 4 2 1 4 5 5 1 8 3 4 1 4 10 14 12 12 10 13 Combat Bots Only 14 | . 3 5 4 11 1 1 5 4 9 6 7 3 3 1 1 4 5 5 1 8 2 4 1 4 7 14 12 12 7 11 Max Kills in Single Turn 8 | 1 2 2 1 5 1 1 3 2 2 2 2 2 1 1 1 2 3 4 1 3 3 2 1 1 2 3 8 4 2 3 Gunslinging 2 | . 1 . . . . . 1 1 1 1 . 1 . . . 1 . 2 . 2 . 1 . . . 1 1 1 1 1 Exploded 8 | . . 2 . 5 . . 3 . 2 . . . . . . . 3 . . . . . . . 1 3 8 4 . 1 Melee . | . . . . . . . . . . . . . . . . . . . . . . . . . . . . . . . Uniques/NPCs Destroyed . | . . . . . . . . . . . . . . . . . . . . . . . . . . . . . . . Combat | -11 -10 -9 -9 -9 -9 -7 -7 -7 -7 -6 -6 -6 -6 -6 -6 -6 -5 -5 -4 -4 -3 -3 -2 -2 -2 -2 -1 -1 -1 -1 -------- Run | Yrd Mat Mat Sto Gar Rec Fac Gar Fac Gar Fac Gar Ext Cet Arc Hub Gar Fac Gar Fac Gar Res Gar Res Gar Res Gar Acc Gar Acc Com Hostile Shots Fired 4903 | . 71 79 57 75 10 31 280 132 81 223 284 141 31 . 9 120 44 97 8 230 33 101 6 156 214 241 156 928 552 513 Missed 1378 | . 18 17 26 22 1 8 103 42 16 45 76 59 11 . 5 20 14 15 5 37 8 41 2 42 44 63 63 272 179 124 Intercepted 25 | . . . . . . . . . . . . . . . . . . . . . . . . . . . . . . 25 Hits 3525 | . 53 62 31 53 9 23 177 90 65 178 208 82 20 . 4 100 30 82 3 193 25 60 4 114 170 178 93 656 373 389 Melee 73 | . . . 1 . . . 9 . . . . . . . . 3 . . . 47 . . . . 4 . 1 . 3 5 Projectile 3452 | . 53 62 30 53 9 23 168 90 65 178 208 82 20 . 4 97 30 82 3 146 25 60 4 114 166 178 92 656 370 384 AOE 24 | . . . . . . . . 1 . . . . . . . 1 . . . 1 . . . . . . . . 2 19 Critical Strikes 158 | . . 2 2 2 1 1 5 2 3 5 4 2 4 . . 6 2 2 . 24 . 4 1 6 7 9 7 18 17 22 Actively Blocked 76 | . . . . . . . . . . . . . . . . 1 . . . 19 . . . 1 2 8 . 17 17 11 Part Disruptions 12 | . . . . . . . . . . . . . . . . . 1 1 . . . . . . 3 1 . 1 . 5 Actively Blocked 3 | . . . . . . . . . . . . . . . . . . . . . . . . . . . . . . 3 Damage Taken 54479 | . 552 642 394 591 134 177 1582 935 661 2403 1833 1114 341 25 49 1650 427 847 37 3929 213 675 47 1982 2361 3081 1402 10648 6752 8995 Core 3433 | . 80 109 19 52 . 16 191 93 83 88 113 128 37 . 22 156 14 61 . 171 . 22 . 86 58 216 31 480 183 924 Absorbed by Shields 19001 | . . . . . . . 22 . 322 . 687 164 162 . . 879 212 854 38 1160 223 710 50 1438 1695 1185 995 3726 1999 2480 Reduced by Siege Mode 4224 | . . . . . . . . 27 10 155 52 . . . . 56 . 72 . 411 10 62 . 283 339 589 47 668 747 696 Redirected to Shielding 80 | . . . . . . . . . . . . . . . . . . . . . . . . . . . . 80 . . Ignored by Resistances 718 | . . 32 . . . 19 155 . . . 289 143 27 . . . . . . . . . . . 6 . . 47 . . Regen/Repaired (Parts) 1928 | . . . 33 74 17 8 190 85 72 316 . . . . . . 209 . . . . . . . 555 . . . 369 . Core Remaining (%) 72 | 100 68 . . . 55 . . . 45 . . . . . . 36 . 92 . 85 . 98 . . . 75 . . . . Volleys Fired 1470 | 5 60 48 44 35 17 7 71 22 47 76 72 46 18 18 16 56 31 48 4 75 16 51 2 60 70 54 39 131 100 131 Largest 6 | 2 2 3 3 3 3 4 4 4 4 4 4 4 4 4 4 4 4 4 4 4 5 5 5 5 5 5 6 6 6 6 Hottest 289 | 40 40 69 69 69 69 97 111 111 116 116 116 121 240 153 209 113 113 134 134 136 169 173 168 168 174 174 207 209 289 252 Shots Fired 5468 | 10 114 134 132 78 51 28 223 79 174 279 281 165 69 66 49 202 85 174 13 250 80 235 10 283 284 215 200 615 472 418 Gun 5288 | 10 114 131 132 66 51 28 216 79 172 274 281 165 69 66 43 197 73 172 12 241 80 233 10 281 271 208 195 611 452 355 Cannon 75 | . . . . . . . . . . 1 . . . . 6 . 3 2 1 . . . . . 3 . 1 . 12 46 Launcher 55 | . . 3 . 12 . . 7 . 2 . . . . . . . 2 . . . . . . . . 6 3 4 . 16 Special 50 | . . . . . . . . . . 4 . . . . . 5 7 . . 9 . 2 . 2 10 1 1 . 8 1 Kinetic 5292 | 10 114 131 132 66 51 28 216 79 172 274 281 165 68 64 43 197 73 172 12 241 80 233 10 281 271 208 195 611 452 362 Thermal 71 | . . . . . . . . . . 1 . . 1 2 6 . 3 2 1 . . . . . 3 . 1 . 12 39 Explosive 31 | . . 3 . 12 . . 7 . 2 . . . . . . . . . . . . . . . . 6 . 1 . . Electromagnetic 24 | . . . . . . . . . . . . . . . . . 2 . . . . . . . . . 3 3 . 16 Robot Hit Streak 52 | 4 10 20 17 23 15 20 32 17 16 35 28 29 10 7 12 29 14 24 19 52 14 30 34 20 41 18 16 46 32 22 Robot Miss Streak 10 | 3 3 5 2 1 1 2 2 3 3 2 3 3 2 3 4 3 2 5 . 4 7 2 1 6 6 5 5 10 5 10 Penetration Max 2 | . . . . . . . 1 1 1 1 1 1 . . 1 1 . 2 . 1 1 1 . 1 2 2 2 2 2 2 Secondary Targets 158 | . 3 . 3 1 . . 3 2 9 3 7 5 2 . . 9 . 9 . 13 . 7 . 7 8 7 6 31 6 17 Max Gunslinging Chain 3 | . 1 . 1 1 . . 1 1 1 1 1 1 1 . . 1 . 2 . 3 . 1 . 1 1 1 1 2 2 2 Shots Hit Robots 3904 | 5 76 85 91 57 36 20 171 57 120 215 216 126 49 38 25 158 60 137 10 187 50 162 9 203 198 141 119 438 322 323 Core Hits 1851 | 3 28 33 36 39 15 7 99 17 57 75 92 52 25 17 13 55 33 57 3 97 22 73 4 86 99 83 106 198 108 219 Critical Kills 56 | . . . . . 1 . . . 2 . 2 2 3 1 . 2 . 4 . 11 . 6 . 3 2 4 2 6 3 2 Critical Parts Destroyed 59 | . . . . . . 1 1 2 1 3 1 4 2 1 . 1 1 4 . 11 3 9 . 1 4 2 1 3 1 2 Critical Strikes 132 | . . . . . 1 1 1 2 3 3 3 7 5 2 . 6 1 10 . 22 3 16 . 5 7 8 3 12 4 7 Meltdown 2 | . . . . . . . . . . . . . . . . . . 1 . . . . . . . . . . . 1 Destroy 130 | . . . . . 1 1 1 2 3 3 3 7 5 2 . 6 1 9 . 22 3 16 . 5 7 8 3 12 4 6 Melee Attacks 20 | . . . 1 14 . . 4 . . . 1 . . . . . . . . . . . . . . . . . . . Impact 8 | . . . 1 2 . . 4 . . . 1 . . . . . . . . . . . . . . . . . . . Slashing 12 | . . . . 12 . . . . . . . . . . . . . . . . . . . . . . . . . . Piercing . | . . . . . . . . . . . . . . . . . . . . . . . . . . . . . . . Sneak Attacks . | . . . . . . . . . . . . . . . . . . . . . . . . . . . . . . . Combat Hostiles . | . . . . . . . . . . . . . . . . . . . . . . . . . . . . . . . Follow-up Attacks . | . . . . . . . . . . . . . . . . . . . . . . . . . . . . . . . Damage Inflicted 105793 | 67 1012 1458 1358 2247 560 330 3966 1192 2997 4595 4647 3348 1171 938 628 4000 1725 3335 249 5232 1171 4192 205 5090 5325 5891 5233 12824 8590 12217 Guns 94796 | 58 1012 1276 1358 774 560 330 2970 1192 2486 4509 4647 3301 1171 938 628 4000 1265 3298 249 5232 1165 4192 205 5088 5235 3970 3501 12046 8548 9592 Cannons 1429 | . . . . . . . . . . . . . . . . . . 37 . . . . . . . . . . 42 1350 Explosions 9322 | . . 182 . 1473 . . 996 . 511 . . . . . . . 457 . . . . . . . . 1921 1732 778 . 1272 Melee . | . . . . . . . . . . . . . . . . . . . . . . . . . . . . . . . Ramming 246 | 9 . . . . . . . . . 86 . 47 . . . . 3 . . . 6 . . 2 90 . . . . 3 Kinetic 94982 | 58 1012 1276 1358 774 560 330 2970 1192 2486 4509 4647 3301 1171 884 628 4000 1265 3298 249 5232 1165 4192 205 5088 5235 3970 3501 12046 8548 9832 Thermal 2101 | . . . . . . . . . . . . . . 54 . . . 37 . . . . . . . . 679 . 42 1289 Explosive 5489 | . . 182 . 1473 . . 996 . 511 . . . . . . . . . . . . . . . . 1921 . 406 . . Electromagnetic 2975 | . . . . . . . . . . . . . . . . . 457 . . . . . . . . . 1053 372 . 1093 Impact . | . . . . . . . . . . . . . . . . . . . . . . . . . . . . . . . Slashing . | . . . . . . . . . . . . . . . . . . . . . . . . . . . . . . . Piercing . | . . . . . . . . . . . . . . . . . . . . . . . . . . . . . . . Highest Corruption 52 | . . . . . . 1 3 3 4 3 3 4 5 6 . 1 1 2 . . . . . 5 13 19 12 30 33 52 Average Corruption 10 | . . . . . . 1 2 3 3 2 3 3 4 4 . 1 1 1 . . . . . 4 9 15 5 18 32 40 Corruption Purged 8 | . . . . . . . . . . . . . . 8 . . . . . . . . . . . . . . . . Corruption Blocked . | . . . . . . . . . . . . . . . . . . . . . . . . . . . . . . . Effects 638 | . . . . . . . 20 12 19 11 29 36 7 6 . 4 4 21 . . . . . 33 60 63 3 93 101 116 Message Errors 113 | . . . . . . . 3 3 4 2 4 9 1 1 . 1 2 3 . . . . . 3 8 11 1 18 15 24 Matter Fused 130 | . . . . . . . 6 3 3 3 14 6 3 1 . 1 1 11 . . . . . 4 16 10 . 17 17 14 Heat Flow Errors 55 | . . . . . . . 3 2 2 1 1 8 . 1 . . . . . . . . . 3 5 8 . 6 9 6 Energy Discharges 73 | . . . . . . . 1 2 6 3 3 5 2 . . . . 2 . . . . . 7 5 7 . 12 10 8 Parts Rejected 12 | . . . . . . . 1 . . 1 . 1 . . . . . . . . . . . 1 2 1 . . 2 3 Parts Fused 7 | . . . . . . . 1 . . . . . . . . . . . . . . . . . 1 3 . 1 1 . Data Loss (minor) 77 | . . . . . . . 3 1 . . 4 4 1 2 . 1 1 3 . . . . . 5 7 7 1 14 9 14 Data Loss (major) 22 | . . . . . . . 1 1 1 . 1 2 . . . . . . . . . . . 2 1 2 . 6 2 3 Misfires 19 | . . . . . . . . . 2 . 2 . . . . . . 1 . . . . . 3 3 2 1 2 3 . Alerts 10 | . . . . . . . . . 1 . . . . . . . . . . . . . . 1 1 3 . . 1 3 Misdirections 5 | . . . . . . . . . . . . . . . . . . . . . . . . . 1 . . . 2 2 Weapon Failures 115 | . . . . . . . 1 . . 1 . 1 . 1 . 1 . 1 . . . . . 4 10 9 . 17 30 39 Overload Shots 1 | . . . . . . . . . . . . . 1 . . . . . . . . . . . . . . . . . Overflow Damage 271 | . . . . 31 . . 35 . 34 . . . . . . . . . . . . . . . 29 110 . 10 . 22 Projectiles 22 | . . . . . . . . . . . . . . . . . . . . . . . . . . . . . . 22 Explosions 220 | . . . . 31 . . 35 . 34 . . . . . . . . . . . . . . . . 110 . 10 . . Melee 29 | . . . . . . . . . . . . . . . . . . . . . . . . . 29 . . . . . Knockbacks 3 | . . . . . . . . . . . . . . . . . . . . . . . . . 1 . . . . 2 Impact 1 | . . . . . . . . . . . . . . . . . . . . . . . . . 1 . . . . . Kinetic 1 | . . . . . . . . . . . . . . . . . . . . . . . . . . . . . . 1 Secondary 1 | . . . . . . . . . . . . . . . . . . . . . . . . . . . . . . 1 Self-Inflicted Damage 595 | . . 14 . . . . 18 . . . . . . . . . 53 . . . . . . . . 142 . 67 . 301 Shots 35 | . . 1 . . . . 1 . . . . . . . . . 7 . . . . . . . . 4 . 2 . 20 Rammed 22 | 3 . . . . . . . . . 9 . 3 . . . . 1 . . . 1 . . 1 3 . . . . 1 Targets Rammed 23 | 4 . . . . . . . . . 9 . 3 . . . . 1 . . . 1 . . 1 3 . . . . 1 Kicked . | . . . . . . . . . . . . . . . . . . . . . . . . . . . . . . . Crushed 1 | 1 . . . . . . . . . . . . . . . . . . . . . . . . . . . . . . Highest Temperature 569 | . 6 53 136 125 86 164 271 234 185 272 207 245 186 215 176 120 152 312 88 407 228 179 20 569 289 246 137 370 315 309 Average Temperature 59 | . 3 20 42 41 32 64 92 85 65 111 23 33 54 79 59 17 57 82 30 76 59 34 10 52 33 44 38 64 100 104 Received Heat Transfer 7211 | . 219 174 156 210 54 42 420 246 169 177 770 325 . 9 12 346 103 101 8 493 . 191 24 935 685 69 163 281 94 735 Effects 14 | . . . . . . . 1 . . . . . . . . . . 4 . . . . . 3 . . . 2 . 4 Shutdowns 3 | . . . . . . . . . . . . . . . . . . . . . . . . . . . . 2 . 1 Energy Bleed 3 | . . . . . . . 1 . . . . . . . . . . 1 . . . . . 1 . . . . . . Interference 6 | . . . . . . . . . . . . . . . . . . 3 . . . . . . . . . . . 3 Short Circuit 1 | . . . . . . . . . . . . . . . . . . . . . . . . 1 . . . . . . Damage (minor) 1 | . . . . . . . . . . . . . . . . . . . . . . . . 1 . . . . . . Siege Activations 114 | . . . . . . . . 2 4 6 7 . . . 1 9 2 4 . 9 2 9 . 9 9 5 5 13 9 9 Total Turns 2101 | . . . . . . . . 15 43 134 107 . . . 2 124 26 92 . 154 26 139 . 140 148 126 65 301 242 217 Longest Duration 74 | . . . . . . . . 11 28 52 20 . . . 2 49 19 32 . 55 15 27 . 29 41 68 28 50 71 74 Martial Activations . | . . . . . . . . . . . . . . . . . . . . . . . . . . . . . . . Shielding Activations . | . . . . . . . . . . . . . . . . . . . . . . . . . . . . . . . Robots Disrupted 1 | . . . . . . . . . . . . . . . . . . . . . . . . . . . . . . 1 Combat Hostiles 1 | . . . . . . . . . . . . . . . . . . . . . . . . . . . . . . 1 Robots Corrupted 10 | . . . . . . . . . . . . . . . . . 1 . . . . . . . . . 1 1 . 7 Combat Hostiles 10 | . . . . . . . . . . . . . . . . . 1 . . . . . . . . . 1 1 . 7 Parts Fried 17 | . . . . . . . . . . . . . . . . . 2 . . . . . . . . . 6 1 . 8 Impact Corruptions 1 | . . . . . . . . . . . . . . . . . . . . . . . . . 1 . . . . . Robots Melted 2 | . . . . . . . . . . . . . . . . . . 1 . . . . . . . . . . . 1 Combat Hostiles 2 | . . . . . . . . . . . . . . . . . . 1 . . . . . . . . . . . 1 Parts Melted 11 | . . . . . . . . . . . . . . . . . . 3 . 1 . . . . 1 . . . 2 4 Heat Transferred 1317 | . . . . . . . . . . . . . . 74 . . . 37 . . . . . . . . 450 . 18 738 Parts Sabotaged . | . . . . . . . . . . . . . . . . . . . . . . . . . . . . . . . Parts Stolen . | . . . . . . . . . . . . . . . . . . . . . . . . . . . . . . . Parts Stripped . | . . . . . . . . . . . . . . . . . . . . . . . . . . . . . . . Power Chain Reactions 4 | . . . . . . . . . . . . . . . . . . . . . . . . . . . 2 . . 2 Alert | -11 -10 -9 -9 -9 -9 -7 -7 -7 -7 -6 -6 -6 -6 -6 -6 -6 -5 -5 -4 -4 -3 -3 -2 -2 -2 -2 -1 -1 -1 -1 ------- Run | Yrd Mat Mat Sto Gar Rec Fac Gar Fac Gar Fac Gar Ext Cet Arc Hub Gar Fac Gar Fac Gar Res Gar Res Gar Res Gar Acc Gar Acc Com Maximum Alert Level 5 | . . 1 2 3 2 2 3 2 4 3 4 3 1 1 1 3 2 3 1 2 1 3 2 4 2 4 4 5 4 4 Low Security (%) 11 | 100 100 46 51 . . . . . . . . . 27 70 62 2 6 14 79 30 . . . . . . . . . . Level 1 19 | . . 53 37 13 . 73 9 91 11 . . 40 72 29 37 13 84 2 20 32 100 26 . 7 . . . . . . Level 2 27 | . . . 10 7 100 26 24 8 20 32 2 51 . . . 60 8 66 . 36 . 50 100 32 100 29 16 . . 5 Level 3 29 | . . . . 78 . . 66 . 49 67 26 7 . . . 23 . 17 . . . 23 . 51 . 66 80 16 70 77 Level 4 10 | . . . . . . . . . 19 . 70 . . . . . . . . . . . . 8 . 4 2 55 29 16 Level 5 1 | . . . . . . . . . . . . . . . . . . . . . . . . . . . . 27 . . High Security . | . . . . . . . . . . . . . . . . . . . . . . . . . . . . . . . Max Security . | . . . . . . . . . . . . . . . . . . . . . . . . . . . . . . . Peak Influence 1836 | 5 129 261 480 1097 513 439 994 521 1271 1094 1525 800 255 215 294 810 436 752 384 663 382 774 492 1109 645 1131 1104 1836 1234 1218 Initial 1101 | . 3 41 94 314 493 439 232 521 268 667 688 800 231 80 46 185 424 40 384 51 372 213 435 361 623 464 678 867 1101 669 Average 642 | 1 47 154 219 835 470 364 703 348 825 846 1169 458 215 172 150 535 321 494 167 353 330 549 436 748 545 823 807 1331 1084 963 Influence Increases 18185 | 15 441 550 660 833 308 333 842 351 1053 786 907 414 191 193 465 775 317 752 29 772 190 601 117 988 704 797 694 1299 646 1162 Destroy 0b10 Robot/C 11005 | . 280 360 420 620 80 40 560 200 700 460 640 270 120 60 105 420 180 480 15 465 45 435 30 555 465 450 465 945 375 765 Destroy 0b10 Robot/NC 434 | 15 25 25 5 . 35 5 20 10 5 60 5 20 8 16 16 . 8 8 . 16 28 4 . . 24 . 16 . 20 40 Destroy Leader 1474 | . 66 104 112 20 . 20 30 82 50 128 30 48 . . 50 24 32 24 8 24 22 40 16 40 104 32 96 88 56 128 Allied During Kill 978 | . . . . 19 . . . 34 20 42 2 33 50 76 171 166 . 121 . 63 5 6 3 116 . 3 . . 3 45 Successful Hack 319 | . 24 8 11 16 41 3 14 10 14 . 28 6 . . 29 . 17 . . 11 18 . . 12 . 11 . . . 46 Select Force Hacks 233 | . 30 30 . . 150 . . . . . . . . . . . . . . . . . 23 . . . . . . . Disable Machine 480 | . 15 . 15 . . 15 15 . . 60 . 24 12 36 72 12 48 . . 24 12 24 . 12 12 . 24 12 36 . Anti-Garrison Action 1042 | . . . . 50 . . 100 . 100 . 151 . . . . 38 . 75 . 113 . . . 113 . 189 . 113 . . Destroy Structure 932 | . 1 23 7 78 2 . 73 . 29 36 21 1 1 5 22 31 8 20 6 32 24 8 9 32 51 88 33 81 132 78 Advance Influence 250 | . . . . . . 250 . . . . . . . . . . . . . . . . . . . . . . . . Partial Spotted 27 | . . . . 15 . . . . . . . . . . . . . . . . . . . . . 12 . . . . Lose Combat Pursuer 1011 | . . . 90 15 . . 30 15 135 . 30 12 . . . 84 24 24 . 24 36 84 36 108 48 12 60 60 24 60 Influence Decreases 17146 | 10 347 425 400 220 954 452 180 961 166 1074 365 1526 402 262 333 230 1069 78 688 182 569 111 409 361 1194 285 741 547 1435 1170 Entered New Map 8030 | . 2 58 130 170 604 262 100 473 116 604 295 725 182 122 87 80 386 18 348 22 291 71 339 121 486 155 453 217 735 378 Time Decay 5960 | 10 325 336 270 . 350 190 . 278 . 380 . 571 180 140 246 . 398 . 190 . 278 . 50 . 478 . 278 . 510 502 Lost Part 1301 | . 20 31 . 10 . . 80 . 30 50 50 40 20 . . 10 . . . 80 . . . 20 30 50 10 330 170 270 Lost Ally 980 | . . . . 40 . . . 60 20 40 20 40 20 . . 140 10 60 . 80 . 40 20 220 50 80 . . 20 20 Purge Threat 875 | . . . . . . . . 150 . . . 150 . . . . 275 . 150 . . . . . 150 . . . . . Squads Dispatched 75 | . 4 2 5 . . 2 . 6 . 10 . 2 . . 2 . 4 . . . 4 . 2 . 10 . 6 . 7 9 Investigation 9 | . 1 1 . . . . . . . 2 . 1 . . . . . . . . . . 1 . 2 . . . . 1 Extermination 20 | . . . . . . 1 . 1 . 3 . . . . 1 . 2 . . . . . . . 4 . 2 . 3 3 Reinforcement 24 | . 3 1 3 . . . . 2 . 4 . 1 . . 1 . 2 . . . 4 . . . 2 . . . 1 . Assault 12 | . . . . . . . . . . 1 . . . . . . . . . . . . . . 2 . 1 . 3 5 Garrison 10 | . . . 2 . . 1 . 3 . . . . . . . . . . . . . . 1 . . . 3 . . . Intercept . | . . . . . . . . . . . . . . . . . . . . . . . . . . . . . . . Searches Triggered . | . . . . . . . . . . . . . . . . . . . . . . . . . . . . . . . Construction Impeded 6 | . . . . . . . . . . 2 . . . . 1 . 1 . . . . . . . 1 . . . 1 . Haulers Reinforced 5 | . . . . . . . . . . 1 . . . . . . . . . . 3 . . . 1 . . . . . Active Scanning Responses . | . . . . . . . . . . . . . . . . . . . . . . . . . . . . . . . Cargo Convoy Interrupts . | . . . . . . . . . . . . . . . . . . . . . . . . . . . . . . . Alert ID Control Effect 24 | . . . . . . . . . . . . . . . . 8 . . . 7 . . . 2 1 3 . . 3 . Stealth | -11 -10 -9 -9 -9 -9 -7 -7 -7 -7 -6 -6 -6 -6 -6 -6 -6 -5 -5 -4 -4 -3 -3 -2 -2 -2 -2 -1 -1 -1 -1 --------- Run | Yrd Mat Mat Sto Gar Rec Fac Gar Fac Gar Fac Gar Ext Cet Arc Hub Gar Fac Gar Fac Gar Res Gar Res Gar Res Gar Acc Gar Acc Com Distress Signals 40 | . 3 . 1 . . . . 1 3 5 . 3 2 . 2 . . . . 1 8 . . 2 4 . 1 . 3 1 Communications Jammed 110 | . . . . . . . . . . . . . . . . . . . . . 38 . . . 34 . 38 . . . Distress Signals 110 | . . . . . . . . . . . . . . . . . . . . . 38 . . . 34 . 38 . . . Times Spotted 853 | . 23 28 30 28 3 2 25 16 36 25 34 25 10 17 15 43 16 38 3 40 11 30 7 39 50 32 46 68 38 75 Peak Tracking Total 13 | . 6 5 6 8 1 1 5 4 7 6 5 4 5 2 4 7 5 6 2 9 6 5 4 6 9 13 11 12 9 10 Tactical Retreats 53 | . . . 4 1 . . 2 1 5 . 2 1 . . . 7 2 2 . 1 1 4 1 5 3 1 2 3 2 3 Traps | -11 -10 -9 -9 -9 -9 -7 -7 -7 -7 -6 -6 -6 -6 -6 -6 -6 -5 -5 -4 -4 -3 -3 -2 -2 -2 -2 -1 -1 -1 -1 ------- Run | Yrd Mat Mat Sto Gar Rec Fac Gar Fac Gar Fac Gar Ext Cet Arc Hub Gar Fac Gar Fac Gar Res Gar Res Gar Res Gar Acc Gar Acc Com Traps Triggered 51 | . . . . 3 . . 2 . 8 . 9 3 . . . 4 . 3 . 6 . 2 . 3 3 1 1 3 . . Indirectly . | . . . . . . . . . . . . . . . . . . . . . . . . . . . . . . . Trap Hack Attempts . | . . . . . . . . . . . . . . . . . . . . . . . . . . . . . . . Triggered . | . . . . . . . . . . . . . . . . . . . . . . . . . . . . . . . Disarmed . | . . . . . . . . . . . . . . . . . . . . . . . . . . . . . . . Reprogrammed . | . . . . . . . . . . . . . . . . . . . . . . . . . . . . . . . Reused . | . . . . . . . . . . . . . . . . . . . . . . . . . . . . . . . Traps Extracted . | . . . . . . . . . . . . . . . . . . . . . . . . . . . . . . . Installed . | . . . . . . . . . . . . . . . . . . . . . . . . . . . . . . . Triggered . | . . . . . . . . . . . . . . . . . . . . . . . . . . . . . . . Machines | -11 -10 -9 -9 -9 -9 -7 -7 -7 -7 -6 -6 -6 -6 -6 -6 -6 -5 -5 -4 -4 -3 -3 -2 -2 -2 -2 -1 -1 -1 -1 ---------- Run | Yrd Mat Mat Sto Gar Rec Fac Gar Fac Gar Fac Gar Ext Cet Arc Hub Gar Fac Gar Fac Gar Res Gar Res Gar Res Gar Acc Gar Acc Com Machines Disabled 58 | . 1 . 1 . . 1 1 . . 4 4 3 1 3 6 3 4 1 . 8 1 2 . 2 1 4 2 2 3 . Max in Single Turn 2 | . 1 . 1 . . 1 1 . . . 1 1 1 1 1 1 1 . . 1 . 1 . 1 1 1 1 2 1 . Garrison Relay 9 | . . . . . . . . . . . 2 . . . . 1 . . . 1 . . . 1 . 3 . 1 . . Energy Cycler 1 | . . . . . . . . . . . . . . . . . . . . . . . . . . . 1 . . . Machines Repaired . | . . . . . . . . . . . . . . . . . . . . . . . . . . . . . . . Machines Dismantled . | . . . . . . . . . . . . . . . . . . . . . . . . . . . . . . . Machines Sabotaged . | . . . . . . . . . . . . . . . . . . . . . . . . . . . . . . . Overloaded Fab Kills . | . . . . . . . . . . . . . . . . . . . . . . . . . . . . . . . Hacking | -11 -10 -9 -9 -9 -9 -7 -7 -7 -7 -6 -6 -6 -6 -6 -6 -6 -5 -5 -4 -4 -3 -3 -2 -2 -2 -2 -1 -1 -1 -1 --------- Run | Yrd Mat Mat Sto Gar Rec Fac Gar Fac Gar Fac Gar Ext Cet Arc Hub Gar Fac Gar Fac Gar Res Gar Res Gar Res Gar Acc Gar Acc Com Machines Accessed 93 | . 3 4 7 3 9 4 1 3 1 6 2 9 . . 4 1 5 1 4 1 4 2 1 2 8 2 2 . . 4 Terminals 52 | . 2 1 4 3 4 1 1 1 1 1 2 8 . . 3 1 1 1 2 1 1 2 . 2 4 2 . . . 3 Fabricators 4 | . . . . . . 1 . 1 . . . . . . . . 1 . 1 . . . . . . . . . . . Repair Stations 4 | . . . . . . . . . . 1 . . . . . . . . . . . . . . 1 . 1 . . 1 Recycling Units 16 | . 1 1 2 . 5 . . . . 3 . 1 . . . . 2 . . . . . . . 1 . . . . . Scanalyzers 6 | . . 2 . . . 1 . . . . . . . . . . . . . . 2 . . . 1 . . . . . Garrison Access 11 | . . . 1 . . 1 . 1 . 1 . . . . 1 . 1 . 1 . 1 . 1 . 1 . 1 . . . Total Hacks 184 | . 6 16 13 7 16 13 2 7 1 9 3 14 . . 7 1 14 1 9 2 7 2 4 4 14 2 3 . . 7 Successful 81 | . 5 10 5 1 9 6 1 6 1 4 2 4 . . 4 . 6 . 2 1 2 1 3 1 2 1 1 . . 3 Failed 101 | . 1 5 8 6 7 6 1 1 . 5 1 10 . . 3 1 8 1 7 1 5 1 1 3 12 1 2 . . 4 Catastrophic 30 | . . . . . 4 . . 1 . 1 . 5 . . 2 . 2 1 2 . 4 1 . 1 6 . . . . . Database Lockouts 2 | . . 1 . . . 1 . . . . . . . . . . . . . . . . . . . . . . . . Manual 50 | . 3 3 3 . 9 . . 3 . 1 . 4 1 . . . 1 . 5 . 1 . 2 . 8 . 2 . . 4 Terminals 99 | . 5 1 8 7 11 3 2 2 1 2 3 13 . . 5 1 3 1 6 2 2 2 . 4 8 2 . . . 5 Fabricators 10 | . . . . . . 2 . 3 . . . . . . . . 4 . 1 . . . . . . . . . . . Repair Stations 7 | . . . . . . . . . . 1 . . . . . . . . . . . . . . 2 . 2 . . 2 Recycling Units 25 | . 1 4 3 . 5 . . . . 4 . 1 . . . . 6 . . . . . . . 1 . . . . . Scanalyzers 23 | . . 11 . . . 6 . . . . . . . . . . . . . . 4 . . . 2 . . . . . Garrison Access 20 | . . . 2 . . 2 . 2 . 2 . . . . 2 . 1 . 2 . 1 . 4 . 1 . 1 . . . Terminal Hacks 30 | . 4 1 2 1 4 . 1 1 1 . 2 3 . . 2 . 1 . 1 1 . 1 . 1 1 1 . . . 1 Part Schematic 3 | . 1 . . . 2 . . . . . . . . . . . . . . . . . . . . . . . . . Robot Schematic 1 | . 1 . . . . . . . . . . . . . . . . . . . . . . . . . . . . . Robot Analysis 2 | . 1 . . . 1 . . . . . . . . . . . . . . . . . . . . . . . . . Prototype ID Bank 2 | . 1 . . . 1 . . . . . . . . . . . . . . . . . . . . . . . . . Open Door 4 | . . . 1 . . . . . . . . 2 . . . . . . . . . . . . . . . . . 1 Branch Access Points 1 | . . 1 . . . . . . . . . . . . . . . . . . . . . . . . . . . . Emergency Access Points 3 | . . . . . . . . . 1 . 1 . . . . . . . . 1 . . . . . . . . . . Unreport Threat 4 | . . . . . . . . 1 . . . 1 . . . . . . 1 . . . . . 1 . . . . . Zone Layout 4 | . . . 1 . . . . . . . . . . . 2 . 1 . . . . . . . . . . . . . Garrison Registry 3 | . . . . . . . 1 . . . . . . . . . . . . . . 1 . . . 1 . . . . Patrol Navigation 1 | . . . . . . . . . . . 1 . . . . . . . . . . . . . . . . . . . Security Stations 2 | . . . . 1 . . . . . . . . . . . . . . . . . . . 1 . . . . . . Fabricator Hacks 6 | . . . . . . 1 . 2 . . . . . . . . 3 . . . . . . . . . . . . . Network Status 3 | . . . . . . 1 . 1 . . . . . . . . 1 . . . . . . . . . . . . . Load Schematic 1 | . . . . . . . . . . . . . . . . . 1 . . . . . . . . . . . . . Build 2 | . . . . . . . . 1 . . . . . . . . 1 . . . . . . . . . . . . . Repair Station Hacks . | . . . . . . . . . . . . . . . . . . . . . . . . . . . . . . . Recycling Unit Hacks 5 | . . 1 2 . . . . . . 1 . 1 . . . . . . . . . . . . . . . . . . Retrieve Components 5 | . . 1 2 . . . . . . 1 . 1 . . . . . . . . . . . . . . . . . . Scanalyzer 11 | . . 7 . . . 3 . . . . . . . . . . . . . . 1 . . . . . . . . . Insert Component 4 | . . 3 . . . 1 . . . . . . . . . . . . . . . . . . . . . . . . Analyze 3 | . . 2 . . . 1 . . . . . . . . . . . . . . . . . . . . . . . . Retrieve Study 4 | . . 2 . . . 1 . . . . . . . . . . . . . . 1 . . . . . . . . . Garrison Access Hacks 16 | . . . 1 . . 2 . 2 . 2 . . . . 2 . 1 . 1 . 1 . 2 . 1 . 1 . . . Unlock Access 11 | . . . 1 . . 1 . 1 . 1 . . . . 1 . 1 . 1 . 1 . 1 . 1 . 1 . . . Coupler Status 5 | . . . . . . 1 . 1 . 1 . . . . 1 . . . . . . . 1 . . . . . . . Unauthorized Hacks 13 | . 1 1 . . 5 . . 1 . 1 . . . . . . 1 . . . . . 1 . . . . . . 2 Terminals 2 | . . . . . . . . . . . . . . . . . . . . . . . . . . . . . . 2 Track 2 | . . . . . . . . . . . . . . . . . . . . . . . . . . . . . . 2 Fabricators 2 | . . . . . . . . 1 . . . . . . . . 1 . . . . . . . . . . . . . Prioritize 1 | . . . . . . . . . . . . . . . . . 1 . . . . . . . . . . . . . Haulers 1 | . . . . . . . . 1 . . . . . . . . . . . . . . . . . . . . . . Repair Stations 1 | . . . . . . . . . . 1 . . . . . . . . . . . . . . . . . . . . Patch 1 | . . . . . . . . . . 1 . . . . . . . . . . . . . . . . . . . . Recycling Units 7 | . 1 1 . . 5 . . . . . . . . . . . . . . . . . . . . . . . . . Tunnel 7 | . 1 1 . . 5 . . . . . . . . . . . . . . . . . . . . . . . . . Scanalyzers . | . . . . . . . . . . . . . . . . . . . . . . . . . . . . . . . Garrison Access 1 | . . . . . . . . . . . . . . . . . . . . . . . 1 . . . . . . . Eject 1 | . . . . . . . . . . . . . . . . . . . . . . . 1 . . . . . . . Data Cores Recovered 4 | . . 1 . . . . . . . . . . . . 2 . . . . . 1 . . . . . . . . . Used . | . . . . . . . . . . . . . . . . . . . . . . . . . . . . . . . Hacking Detections 75 | . 1 2 6 3 3 4 1 3 . 4 2 7 1 . 4 1 5 1 4 1 4 1 1 2 8 1 2 . . 3 Full Trace Events 5 | . . . . 1 . . . . . 1 . 1 . . . . . . . . . . . . 1 . . . . 1 Feedback Events . | . . . . . . . . . . . . . . . . . . . . . . . . . . . . . . . Feedback Blocked . | . . . . . . . . . . . . . . . . . . . . . . . . . . . . . . . Robot Schematics Acquired 1 | . 1 . . . . . . . . . . . . . . . . . . . . . . . . . . . . . Robots Built 1 | . . . . . . . . . . . . . . . . . 1 . . . . . . . . . . . . . Authchips 1 | . . . . . . . . . . . . . . . . . 1 . . . . . . . . . . . . . Time 81 | . . . . . . . . . . . . . . . . . 81 . . . . . . . . . . . . . Total Robot Build Rating 1 | . . . . . . . . . . . . . . . . . 1 . . . . . . . . . . . . . Part Schematics Acquired 6 | . 1 2 . . 2 1 . . . . . . . . . . . . . . . . . . . . . . . . Parts Built 2 | . . . . . . . . 2 . . . . . . . . . . . . . . . . . . . . . . Authchips . | . . . . . . . . . . . . . . . . . . . . . . . . . . . . . . . Time 117 | . . . . . . . . 117 . . . . . . . . . . . . . . . . . . . . . . Total Part Build Rating 14 | . . . . . . . . 14 . . . . . . . . . . . . . . . . . . . . . . Part Studies Acquired 4 | . . 2 . . . 1 . . . . . . . . . . . . . . 1 . . . . . . . . . Parts Repaired . | . . . . . . . . . . . . . . . . . . . . . . . . . . . . . . . Time . | . . . . . . . . . . . . . . . . . . . . . . . . . . . . . . . Parts Recycled . | . . . . . . . . . . . . . . . . . . . . . . . . . . . . . . . Recycled Matter . | . . . . . . . . . . . . . . . . . . . . . . . . . . . . . . . Retrieved Matter . | . . . . . . . . . . . . . . . . . . . . . . . . . . . . . . . Retrieved Components 15 | . . 10 3 . . . . . . 1 . 1 . . . . . . . . . . . . . . . . . . Parts Scanalyzed 3 | . . 2 . . . 1 . . . . . . . . . . . . . . . . . . . . . . . . Part Schematics Acquired 3 | . . 2 . . . 1 . . . . . . . . . . . . . . . . . . . . . . . . Parts Damaged . | . . . . . . . . . . . . . . . . . . . . . . . . . . . . . . . Bothacking | -11 -10 -9 -9 -9 -9 -7 -7 -7 -7 -6 -6 -6 -6 -6 -6 -6 -5 -5 -4 -4 -3 -3 -2 -2 -2 -2 -1 -1 -1 -1 ------------ Run | Yrd Mat Mat Sto Gar Rec Fac Gar Fac Gar Fac Gar Ext Cet Arc Hub Gar Fac Gar Fac Gar Res Gar Res Gar Res Gar Acc Gar Acc Com Used RIF Installer 13 | . . . . 2 . . 1 . 1 . 2 . . . . 1 . 1 . 1 . 1 . 1 . 1 . 1 . . Coupler Efficiency 1 | . . . . . . . . . . . . . . . . . . . . . . . . . . . . 1 . . Hotswap 1 | . . . . . . . . . . . . . . . . . . . . . . . . 1 . . . . . . Code Merge 1 | . . . . . . . . . . . . . . . . . . . . 1 . . . . . . . . . . Command Fork 2 | . . . . . . . . . . . 1 . . . . . . . . . . . . . . 1 . . . . Threat Obfuscator 1 | . . . . . . . . . . . 1 . . . . . . . . . . . . . . . . . . . Watcher Feeds 1 | . . . . 1 . . . . . . . . . . . . . . . . . . . . . . . . . . Patrol Navigation 1 | . . . . . . . . . . . . . . . . . . 1 . . . . . . . . . . . . Alert ID Control 1 | . . . . . . . . . 1 . . . . . . . . . . . . . . . . . . . . . Structural Interface 1 | . . . . . . . 1 . . . . . . . . . . . . . . . . . . . . . . . Program Shield 1 | . . . . . . . . . . . . . . . . . . . . . . 1 . . . . . . . . Autoassimilate 1 | . . . . . . . . . . . . . . . . 1 . . . . . . . . . . . . . . Robots Hacked 25 | . . . . . . . . . . 3 . . . . . 2 4 . . . . . . 1 8 1 1 . 4 1 Non-combat 17 | . . . . . . . . . . 2 . . . . . . 4 . . . . . . . 7 . 1 . 3 . Combat 7 | . . . . . . . . . . 1 . . . . . 2 . . . . . . . 1 1 1 . . 1 . Autoassimilated 1 | . . . . . . . . . . . . . . . . . . . . . . . . . 1 . . . . . Robot Hacks Applied 27 | . . . . . . . . . . 3 . . . . . 3 6 . . . . . . 1 8 1 1 . 4 . find_chute 1 | . . . . . . . . . . . . . . . . . 1 . . . . . . . . . . . . . ignore_repairs 1 | . . . . . . . . . . . . . . . . . . . . . . . . . 1 . . . . . map_walls 2 | . . . . . . . . . . . . . . . . . 1 . . . . . . . . . . . 1 . find_fabricator 1 | . . . . . . . . . . . . . . . . . 1 . . . . . . . . . . . . . drop_inventory 4 | . . . . . . . . . . 1 . . . . . . . . . . . . . . 2 . 1 . . . ignore_parts 1 | . . . . . . . . . . . . . . . . . . . . . . . . . 1 . . . . . purge_threat 2 | . . . . . . . . . . . . . . . . . 2 . . . . . . . . . . . . . summon_haulers 1 | . . . . . . . . . . . . . . . . . 1 . . . . . . . . . . . . . map_route 1 | . . . . . . . . . . . . . . . . . . . . . . . . . . . . . 1 . focus_fire 1 | . . . . . . . . . . . . . . . . 1 . . . . . . . . . . . . . . amplify_resonance 1 | . . . . . . . . . . . . . . . . . . . . . . . . . 1 . . . . . formatsys_low 5 | . . . . . . . . . . 1 . . . . . . . . . . . . . . 3 . . . 1 . formatsys_high 6 | . . . . . . . . . . 1 . . . . . 2 . . . . . . . 1 . 1 . . 1 . Manual 1 | . . . . . . . . . . . . . . . . . . . . . . . . . . . . . . 1 Relay Couplers Released 50 | . . . . . . . . . . 4 9 . . . . 3 . . . 3 . 3 4 3 4 12 . 5 . . Ejected 4 | . . . . . . . . . . . . . . . . . . . . . . . 4 . . . . . . . Machine Destruction 35 | . . . . . . . . . . . 9 . . . . 3 . . . 3 . . . 3 . 12 . 5 . . Programmers 11 | . . . . . . . . . . 4 . . . . . . . . . . . 3 . . 4 . . . . . Attached 18 | . . . . . . . . . . 2 . . . . . 4 1 . . 1 . . 3 1 1 1 1 2 1 . Merged Code Value 13 | . . . . . . . . . . . . . . . . . . . . . . . . 13 . . . . . . Fabnet Peak Effective % . | . . . . . . . . . . . . . . . . . . . . . . . . . . . . . . . Robots Rewired 29 | . . . . . . . 3 . . . . 3 . . . 1 . 2 . 7 . 1 . 9 . 3 . . . . Allies Hacked 2 | . . . . . . . . . . . . . . . . . . 1 . . . . . . . 1 . . . . Hacks Repelled . | . . . . . . . . . . . . . . . . . . . . . . . . . . . . . . . Allies | -11 -10 -9 -9 -9 -9 -7 -7 -7 -7 -6 -6 -6 -6 -6 -6 -6 -5 -5 -4 -4 -3 -3 -2 -2 -2 -2 -1 -1 -1 -1 -------- Run | Yrd Mat Mat Sto Gar Rec Fac Gar Fac Gar Fac Gar Ext Cet Arc Hub Gar Fac Gar Fac Gar Res Gar Res Gar Res Gar Acc Gar Acc Com Total Allies 60 | . . . . 2 . . 3 . 2 2 . 5 5 . . 3 1 4 . 7 . 3 . 12 4 4 . . 3 . Largest Group 8 | . . . . 2 . . 3 3 2 2 1 3 6 6 5 8 1 2 . 6 1 2 1 6 2 6 . . 3 1 Highest-Rated Group 770 | . . . . 51 . . 129 129 157 106 90 190 639 639 480 770 14 198 . 294 81 190 148 424 128 325 . . 228 183 Highest-Rated Ally 183 | . . . . 31 . . 43 43 95 95 90 159 159 159 96 99 14 99 . 85 81 148 148 95 64 148 . . 183 183 Total Orders 28 | . . . . . . . . . . 8 . . . . . 2 2 . . . 1 . 1 . 7 4 . . 2 1 STAY 11 | . . . . . . . . . . . . . . . . 1 1 . . . 1 . 1 . 4 1 . . 1 1 FOLLOW 3 | . . . . . . . . . . . . . . . . 1 . . . . . . . . . 2 . . . . AID 6 | . . . . . . . . . . 1 . . . . . . 1 . . . . . . . 3 . . . 1 . COLLECT 1 | . . . . . . . . . . . . . . . . . . . . . . . . . . 1 . . . . EXPLORE 6 | . . . . . . . . . . 6 . . . . . . . . . . . . . . . . . . . . RETURN 1 | . . . . . . . . . . 1 . . . . . . . . . . . . . . . . . . . . Ally Attacks 500 | . . . . 8 . . . 16 12 24 9 50 15 23 25 79 . 31 . 43 2 6 13 89 11 18 . . 15 11 Total Damage 17687 | . . . . 144 . . . 595 491 1030 386 1206 405 858 934 3014 . 1306 . 1473 36 337 476 2965 429 514 . . 476 612 Kills 93 | . . . . 1 . . . 5 4 7 1 6 3 3 6 13 . 8 . 8 1 1 1 15 1 3 . . 3 3 Allies Corrupted 2 | . . . . 1 . . . . . . . . . . . 1 . . . . . . . . . . . . . . Allies Melted 4 | . . . . . . . . . . . 1 . . . . 1 . . . . . . . 2 . . . . . . Intel | -11 -10 -9 -9 -9 -9 -7 -7 -7 -7 -6 -6 -6 -6 -6 -6 -6 -5 -5 -4 -4 -3 -3 -2 -2 -2 -2 -1 -1 -1 -1 ------- Run | Yrd Mat Mat Sto Gar Rec Fac Gar Fac Gar Fac Gar Ext Cet Arc Hub Gar Fac Gar Fac Gar Res Gar Res Gar Res Gar Acc Gar Acc Com Active Infowar (turns) 8598 | 46 158 . . . . 279 26 471 . 525 35 . . . 382 173 752 46 350 124 618 2 . . 1194 1200 615 666 936 . Optics 2 | . . . . . . . . . . . . . . . . . . 2 . . . . . . . . . . . . Seismic 5872 | 46 158 . . . . 279 26 471 . 525 35 . . . 382 173 752 44 348 . 560 . . . 1069 5 . 63 936 . Jamming 4096 | . . . . . . . . . . . . . . . . . . . . 124 595 2 . . 957 1200 615 603 . . ECM 2 | . . . . . . . . . . . . . . . . . . . 2 . . . . . . . . . . . Robot Analysis Total 2 | . 1 . . . 1 . . . . . . . . . . . . . . . . . . . . . . . . . Derelict Logs Recovered . | . . . . . . . . . . . . . . . . . . . . . . . . . . . . . . . Drone Launches 6 | . . . . . . . . . . 6 . . . . . . . . . . . . . . . . . . . . Drone Recoveries 4 | . . . . . . . . . . 4 . . . . . . . . . . . . . . . . . . . . Exploration | -11 -10 -9 -9 -9 -9 -7 -7 -7 -7 -6 -6 -6 -6 -6 -6 -6 -5 -5 -4 -4 -3 -3 -2 -2 -2 -2 -1 -1 -1 -1 ------------- Run | Yrd Mat Mat Sto Gar Rec Fac Gar Fac Gar Fac Gar Ext Cet Arc Hub Gar Fac Gar Fac Gar Res Gar Res Gar Res Gar Acc Gar Acc Com Turns Passed 29266 | 112 810 802 597 992 786 384 1281 617 1342 882 1513 1728 361 285 528 1173 940 1477 384 1638 618 1040 107 1311 1220 1252 615 1743 1386 1342 Spaces Moved 12238 | 53 384 353 239 555 511 270 578 276 557 335 594 672 160 98 267 512 465 733 218 685 318 447 60 565 505 469 168 507 346 338 Core 75 | 10 . . . . . . . . . . . . . . . . . . . . . . . . . . . . . 65 Treads 7804 | 43 143 21 7 9 1 . 45 23 26 256 594 569 33 . 47 228 465 733 218 685 318 447 60 565 505 469 168 507 346 273 Legs . | . . . . . . . . . . . . . . . . . . . . . . . . . . . . . . . Wheels 4359 | . 241 332 232 546 510 270 533 253 531 79 . 103 127 98 220 284 . . . . . . . . . . . . . . Hover . | . . . . . . . . . . . . . . . . . . . . . . . . . . . . . . . Flight . | . . . . . . . . . . . . . . . . . . . . . . . . . . . . . . . Fastest Speed 50 | 50 130 135 150 135 135 120 120 150 195 150 160 160 160 160 160 160 160 160 160 160 158 158 158 158 155 157 151 151 250 50 Average Speed 174 | 149 151 155 153 139 135 120 156 182 197 160 199 229 176 160 174 164 164 160 160 175 158 158 158 158 157 198 234 210 250 215 Slowest Speed 410 | 160 240 400 240 400 240 120 240 240 240 240 320 242 242 160 240 240 240 240 160 243 158 158 158 161 241 250 250 410 250 410 Overloaded Moves . | . . . . . . . . . . . . . . . . . . . . . . . . . . . . . . . Propulsion Burnouts . | . . . . . . . . . . . . . . . . . . . . . . . . . . . . . . . Robots Hopped . | . . . . . . . . . . . . . . . . . . . . . . . . . . . . . . . Potential Cave-ins 2 | . . . . . . . . . . . . . . . . . . . . . . . . . . . . 2 . . Cave-ins Triggered . | . . . . . . . . . . . . . . . . . . . . . . . . . . . . . . . Exploration Rate (%) 48 | 4 72 40 62 74 85 8 62 10 87 18 84 86 66 71 55 67 18 91 9 76 12 64 2 74 33 78 11 53 17 19 Regions Visited 30 Branch Regions 7 Pre-discovered Areas 7 | . 1 1 . . 5 . . . . . . . . . . . . . . . . . . . . . . . . . Known Exits Taken 12 | . . 1 1 . . 1 . 1 . 1 . . . . 1 . 1 . 1 . 1 . 1 . 1 . 1 . . . Unknown Exits Taken 7 | 1 1 . . . 1 . . . . . . 1 1 1 . . . . . . . . . . . . . . 1 . Scrap Searched . | . . . . . . . . . . . . . . . . . . . . . . . . . . . . . . . Spaces Dug 44 | . . . . 3 . . 4 . 8 1 1 . . . 2 . 2 1 1 . . . . . 3 12 1 . 5 . Terrain Destroyed 417 | . . 28 . 41 . . 36 1 15 6 2 2 . 4 5 2 3 8 4 10 8 16 1 12 35 42 21 37 49 29 Melee 4 | . . . . 3 . . . . . . 1 . . . . . . . . . . . . . . . . . . . Projectile 181 | . . . . . . . 2 1 1 5 1 2 . 4 5 1 3 7 4 9 7 14 1 11 33 10 15 20 20 5 AOE 201 | . . 28 . 38 . . 34 . 13 . . . . . . . . . . . . . . . . 32 3 12 24 17 Terrain Rammed . | . . . . . . . . . . . . . . . . . . . . . . . . . . . . . . . Walls Destroyed . | . . . . . . . . . . . . . . . . . . . . . . . . . . . . . . . Machines Disabled . | . . . . . . . . . . . . . . . . . . . . . . . . . . . . . . . Actions | -11 -10 -9 -9 -9 -9 -7 -7 -7 -7 -6 -6 -6 -6 -6 -6 -6 -5 -5 -4 -4 -3 -3 -2 -2 -2 -2 -1 -1 -1 -1 --------- Run | Yrd Mat Mat Sto Gar Rec Fac Gar Fac Gar Fac Gar Ext Cet Arc Hub Gar Fac Gar Fac Gar Res Gar Res Gar Res Gar Acc Gar Acc Com Total 16953 | 70 494 503 364 674 565 312 796 342 702 539 809 786 215 200 307 751 582 938 243 970 389 648 67 838 753 664 285 865 608 674 Wait 1568 | 1 26 42 32 18 23 11 45 20 62 46 84 10 7 66 15 113 42 81 10 83 25 119 . 103 90 60 49 98 65 122 Move 12216 | 53 383 352 239 554 510 270 577 276 556 335 593 671 159 97 267 511 465 732 217 684 317 446 59 564 505 468 167 506 345 338 Hop . | . . . . . . . . . . . . . . . . . . . . . . . . . . . . . . . Pick Up 250 | 1 18 15 7 4 2 4 16 9 7 18 13 5 8 . 1 8 6 13 2 19 6 2 1 4 9 7 5 20 15 5 Fast Attach 186 | 7 2 2 2 1 . 4 6 . 2 4 6 5 3 7 . 17 . 10 2 8 2 3 3 8 10 13 4 34 12 9 Attach 162 | . 1 4 1 1 . 4 9 . 2 12 8 5 5 2 . 4 4 1 2 11 2 . . 3 5 6 2 25 16 27 Detach 36 | . . . . . . 3 1 . . 3 . 1 . 2 . 2 1 1 . 2 . . 1 . . 5 . 4 4 6 Swap 432 | . 3 25 26 27 9 5 19 10 6 23 13 12 3 . 7 16 28 9 4 20 12 15 . 5 46 14 11 14 35 15 Drop 338 | . 1 15 12 6 4 4 16 5 8 13 16 12 12 7 1 22 4 23 2 21 8 8 1 12 15 17 8 29 16 20 Fire 1470 | 5 60 48 44 35 17 7 71 22 47 76 72 46 18 18 16 56 31 48 4 75 16 51 2 60 70 54 39 131 100 131 Melee 20 | . . . 1 14 . . 4 . . . 1 . . . . . . . . . . . . . . . . . . . Ram 1 | . . . . . . . . . . . . . . . . . . . . . . . . . . . . . . 1 Kick . | . . . . . . . . . . . . . . . . . . . . . . . . . . . . . . . Crush 21 | 3 . . . . . . . . . 9 . 3 . . . . 1 . . . 1 . . 1 3 . . . . . Escape Stasis 51 | . . . . 12 . . 4 . 12 . 3 2 . . . 2 . 2 . 4 . 4 . . . 2 . 4 . . Rewire 200 | . . . . . . . 28 . . . . 14 . 1 . . . 18 . 43 . . . 78 . 18 . . . . Trap . | . . . . . . . . . . . . . . . . . . . . . . . . . . . . . . . Miscellaneous 2 | . . . . 2 . . . . . . . . . . . . . . . . . . . . . . . . . . Route ------- -11/Scrapyard -10/Materials (discovered 4 exits: *Mat x2 / [*Min x2]) -9/Materials (discovered 4 exits: *Min x2 / *Sto x2) -9/Storage -9/Garrison (discovered 3 exits: *Rec x3) -9/Recycling -7/Factory (discovered 2 exits: *Fac / Gar) -7/Garrison (discovered 4 exits: *Fac x4) -7/Factory -7/Garrison (discovered 3 exits: *Fac x3) -6/Factory (discovered 3 exits: *Fac / *Ext / Gar) -6/Garrison (discovered 3 exits: *Ext x3) -6/Extension (discovered 2 exits: *Fac / *Cet) -6/Cetus (discovered 2 exits: *Fac / [*Arc]) -6/Archives (discovered 2 exits: *Fac / *Hub) -6/Hub_04(d) (discovered 3 exits: *Fac x2 / Gar) -6/Garrison -5/Factory (discovered 2 exits: *Fac / Gar) -5/Garrison (discovered 3 exits: *Fac x3) -4/Factory -4/Garrison (discovered 3 exits: *Res x3) -3/Research -3/Garrison (discovered 3 exits: *Res x3) -2/Research -2/Garrison (discovered 3 exits: *Res x3) -2/Research -2/Garrison (discovered 3 exits: *Acc x3) -1/Access -1/Garrison -1/Access -1/Command History --------- Turn | Location | Event 8 | -11/Scrapyard | Discovered new exit (range 15) 113 | -11/Scrapyard | Entered Materials 228 | -10/Materials | Discovered new exit (range 8) 304 | -10/Materials | Build established: Mutant 499 | -10/Materials | Discovered new exit (range 16) 614 | -10/Materials | Discovered new exit (range 11) 886 | -10/Materials | Discovered new exit (range 3) 923 | -10/Materials | Entered another Materials area 923 | -9/Materials | Evolved 2 slots: Utility x1, Weapon x1 1162 | -9/Materials | Discovered new exit (range 10) 1289 | -9/Materials | Build established: Gunner 1298 | -9/Materials | Central database locked down 1450 | -9/Materials | Discovered new exit (range 13) 1507 | -9/Materials | Identified exit to Mines 1507 | -9/Materials | Identified exit to Storage 1637 | -9/Materials | Build established: Tank 1725 | -9/Materials | Entered Storage 1738 | -9/Storage | Found Prototype Protection 1738 | -9/Storage | Identified Lgt. Regenerative Plating 2001 | -9/Storage | Build established: Gunner 2147 | -9/Storage | Garrison activated, responded to threat 2322 | -9/Storage | Identified exit to Garrison 2322 | -9/Storage | Entered Garrison 2357 | -9/Garrison | Learned Recycling security intel 2366 | -9/Garrison | Triggered checkpoint 2458 | -9/Garrison | Triggered checkpoint 2469 | -9/Garrison | Triggered checkpoint 2496 | -9/Garrison | Destroyed 11 combat bots 2525 | -9/Garrison | Rescued a captive Derelict 2526 | -9/Garrison | Rescued a captive Derelict 2626 | -9/Garrison | Triggered checkpoint 2737 | -9/Garrison | Discovered new exit (range 9) 2838 | -9/Garrison | Triggered checkpoint 2854 | -9/Garrison | Triggered checkpoint 2878 | -9/Garrison | Destroyed 7 combat bots 2993 | -9/Garrison | Installed Relay Interface Framework 3023 | -9/Garrison | Discovered new exit (range 14) 3199 | -9/Garrison | Triggered checkpoint 3223 | -9/Garrison | Discovered new exit (range 15) 3250 | -9/Garrison | Expanded RIF knowledge: Watcher Feeds 3252 | -9/Garrison | Build established: Scavenger-Mutant 3314 | -9/Garrison | Entered Recycling 3429 | -9/Recycling | Scanned before Scraplab entrance 3626 | -9/Recycling | Build established: Gunner 3840 | -9/Recycling | Discovered new exit (range 6) 4091 | -9/Recycling | Build established: Scavenger-Gunner 4100 | -9/Recycling | Entered Factory 4100 | -7/Factory | Evolved 4 slots: Propulsion x1, Utility x2, Weapon x1 4148 | -7/Factory | Central database locked down 4359 | -7/Factory | Discovered new exit (range 4) 4463 | -7/Factory | Garrison activated, responded to threat 4484 | -7/Factory | Identified exit to Garrison 4484 | -7/Factory | Entered Garrison 4588 | -7/Garrison | Triggered checkpoint 4652 | -7/Garrison | Triggered checkpoint 4673 | -7/Garrison | Triggered checkpoint 4673 | -7/Garrison | Triggered checkpoint 4733 | -7/Garrison | Lost 6 parts (1p2n1u2w) 4804 | -7/Garrison | Discovered new exit (range 12) 4823 | -7/Garrison | Triggered checkpoint 4827 | -7/Garrison | Discovered new exit (range 14) 4890 | -7/Garrison | Triggered checkpoint 4955 | -7/Garrison | Discovered new exit (range 72) 4955 | -7/Garrison | Discovered new exit (range 25) 4955 | -7/Garrison | Discovered new exit (range 26) 4955 | -7/Garrison | Discovered new exit (range 28) 5033 | -7/Garrison | Build established: Scavenger-Tank 5121 | -7/Garrison | Heavy support dispatched to Factory 5446 | -7/Garrison | Expanded RIF knowledge: Structural Interface 5592 | -7/Garrison | Build established: Tank 5765 | -7/Garrison | Entered Factory 5765 | -7/Factory | Accompanied by 3 allies 6066 | -7/Factory | Build established: Scavenger-Tank 6097 | -7/Factory | Fabricated Hvy. Gauss Cannon? 6230 | -7/Factory | Garrison activated, responded to threat 6296 | -7/Factory | Lost 3 allies 6382 | -7/Factory | Identified exit to Garrison 6382 | -7/Factory | Entered Garrison 6521 | -7/Garrison | Triggered checkpoint 6542 | -7/Garrison | Triggered checkpoint 6569 | -7/Garrison | Destroyed 9 combat bots 6776 | -7/Garrison | Discovered new exit (range 10) 6798 | -7/Garrison | Triggered checkpoint 6995 | -7/Garrison | Core integrity fell below 50% 7108 | -7/Garrison | Discovered new exit (range 9) 7195 | -7/Garrison | Expanded RIF knowledge: Alert ID Control 7223 | -7/Garrison | Triggered checkpoint 7368 | -7/Garrison | Found embedded Infiltrators 7460 | -7/Garrison | Triggered checkpoint 7662 | -7/Garrison | Triggered checkpoint 7703 | -7/Garrison | Discovered new exit (range 12) 7724 | -7/Garrison | Entered Factory 7724 | -6/Factory | Accompanied by 1 ally 7724 | -6/Factory | Evolved 2 slots: Propulsion x1, Utility x1 7841 | -6/Factory | Discovered new exit (range 22) 7857 | -6/Factory | Discovered new exit (range 35) 7880 | -6/Factory | Destroyed B-75 Beast 8367 | -6/Factory | Lost 4 parts (1n1u2w) 8424 | -6/Factory | First assault squad dispatched 8605 | -6/Factory | Identified exit to Garrison 8606 | -6/Factory | Entered Garrison 8606 | -6/Garrison | Accompanied by 1 ally 8638 | -6/Garrison | Triggered checkpoint 8742 | -6/Garrison | Expanded RIF knowledge: Command Fork 8823 | -6/Garrison | Triggered checkpoint 8896 | -6/Garrison | Destroyed 7 combat bots 9013 | -6/Garrison | Discovered new exit (range 10) 9034 | -6/Garrison | Triggered checkpoint 9409 | -6/Garrison | Found Adv. Powered Armor 9418 | -6/Garrison | Lost 3 parts (2n1u) 9454 | -6/Garrison | Found Gamma Bomb Array 9562 | -6/Garrison | Expanded RIF knowledge: Threat Obfuscation 9649 | -6/Garrison | Discovered new exit (range 9) 9668 | -6/Garrison | Spotted B-75 Beast 9709 | -6/Garrison | Destroyed B-75 Beast 9828 | -6/Garrison | Garrison Relay disabled 9896 | -6/Garrison | Triggered checkpoint 10001 | -6/Garrison | Triggered checkpoint 10005 | -6/Garrison | Build established: Scavenger-Gunner 10024 | -6/Garrison | Garrison Relay disabled 10097 | -6/Garrison | Discovered new exit (range 10) 10119 | -6/Garrison | Entered Extension 11213 | -6/Extension | Spotted B-75 Beast 11231 | -6/Extension | Allies destroyed B-75 Beast 11270 | -6/Extension | Spotted B-75 Beast 11305 | -6/Extension | Destroyed B-75 Beast 11334 | -6/Extension | Lost 3 parts (3w) 11388 | -6/Extension | Rescued A7 11737 | -6/Extension | Rescued a captive Derelict 11815 | -6/Extension | Discovered new exit (range 10) 11817 | -6/Extension | Discovered new exit (range 6) 11847 | -6/Extension | Entered Cetus 11847 | -6/Cetus | Accompanied by 2 allies (A7) 11852 | -6/Cetus | Acquired a Cetus Manufacturing Module code from A7 11881 | -6/Cetus | Spotted Cetus Guard 11882 | -6/Cetus | Spotted Cetus Guard 11890 | -6/Cetus | Spotted Cetus Guard 11890 | -6/Cetus | Spotted Cetus Guard 11892 | -6/Cetus | Allies destroyed Cetus Guard 11900 | -6/Cetus | Allies destroyed Cetus Guard 11903 | -6/Cetus | Destroyed Cetus Guard 11908 | -6/Cetus | Destroyed Cetus Guard 12013 | -6/Cetus | Started Cetus Manufacturing Module 12030 | -6/Cetus | Escorted A7 to Cetus Mainframe 12038 | -6/Cetus | Manufactured an Enhanced Grunt 12051 | -6/Cetus | Discovered new exit (range 16) 12063 | -6/Cetus | Manufactured an Enhanced Grunt 12080 | -6/Cetus | Spotted Cetus Guard 12080 | -6/Cetus | Spotted Cetus Guard 12084 | -6/Cetus | Destroyed Cetus Guard 12084 | -6/Cetus | Spotted Cetus Guard 12086 | -6/Cetus | Destroyed Cetus Guard 12087 | -6/Cetus | Spotted Cetus Guard 12088 | -6/Cetus | Manufactured an Enhanced Grunt 12093 | -6/Cetus | Allies destroyed Cetus Guard 12094 | -6/Cetus | Destroyed Cetus Guard 12109 | -6/Cetus | Discovered new exit (range 15) 12113 | -6/Cetus | Manufactured an Enhanced Grunt 12117 | -6/Cetus | Met Revision 17 12138 | -6/Cetus | Manufactured an Enhanced Grunt 12208 | -6/Cetus | Entered Archives 12208 | -6/Archives | Accompanied by 6 allies (A7) 12213 | -6/Archives | Received a hacking code to weaken MAIN.C 12272 | -6/Archives | Discovered new exit (range 16) 12312 | -6/Archives | Discovered new exit (range 16) 12448 | -6/Archives | Build established: Scavenger-Tank 12493 | -6/Archives | Entered Hub_04(d) 12493 | -6/Hub_04(d) | Accompanied by 5 allies 12662 | -6/Hub_04(d) | Discovered new exit (range 2) 12761 | -6/Hub_04(d) | Discovered new exit (range 11) 13016 | -6/Hub_04(d) | Identified exit to Garrison 13021 | -6/Hub_04(d) | Entered Garrison 13021 | -6/Garrison | Accompanied by 5 allies 13049 | -6/Garrison | Triggered checkpoint 13106 | -6/Garrison | Spotted Striker 13106 | -6/Garrison | Spotted Striker 13201 | -6/Garrison | Spotted B-75 Beast 13219 | -6/Garrison | Core integrity fell below 50% 13219 | -6/Garrison | Allies destroyed B-75 Beast 13237 | -6/Garrison | Found Relay Coupler [Proto] 13241 | -6/Garrison | Found Relay Coupler [Proto] 13244 | -6/Garrison | Found Relay Coupler [Proto] 13246 | -6/Garrison | Found Relay Coupler [Proto] 13326 | -6/Garrison | Assimilated Striker with formatsys_high 13334 | -6/Garrison | Assimilated Striker with formatsys_high 13341 | -6/Garrison | Rewired Striker 13499 | -6/Garrison | Triggered checkpoint 13501 | -6/Garrison | Triggered checkpoint 13560 | -6/Garrison | Lost 6 allies 13636 | -6/Garrison | Found Prototype Device 13636 | -6/Garrison | Identified Exp. Thermal Shield 13721 | -6/Garrison | Spotted B-75 Beast 13761 | -6/Garrison | Spotted B-75 Beast 13776 | -6/Garrison | Destroyed B-75 Beast 13784 | -6/Garrison | Destroyed B-75 Beast 13895 | -6/Garrison | Discovered new exit (range 15) 13910 | -6/Garrison | Triggered checkpoint 13993 | -6/Garrison | Triggered checkpoint 14060 | -6/Garrison | Expanded RIF knowledge: Autoassimilate 14123 | -6/Garrison | Garrison Relay disabled 14194 | -6/Garrison | Entered Factory 14194 | -5/Factory | Evolved 2 slots: Power x1, Propulsion x1 14491 | -5/Factory | Spotted B-75 Beast 14579 | -5/Factory | Discovered new exit (range 8) 14755 | -5/Factory | Fabricated M-13 Machinist (x1) 15131 | -5/Factory | Identified exit to Garrison 15134 | -5/Factory | Entered Garrison 15165 | -5/Garrison | Spotted Executioner 15191 | -5/Garrison | Destroyed Executioner 15236 | -5/Garrison | Found Prototype Processor 15236 | -5/Garrison | Identified Exp. Core Analyzer 15245 | -5/Garrison | Found Prototype Device 15245 | -5/Garrison | Identified Adv. Kinecellerator 15274 | -5/Garrison | Found Exp. Core Analyzer 15285 | -5/Garrison | Rewired Striker 15308 | -5/Garrison | Rewired Striker 15342 | -5/Garrison | Triggered checkpoint 15526 | -5/Garrison | Destroyed Striker 15696 | -5/Garrison | Triggered checkpoint 15708 | -5/Garrison | Triggered checkpoint 15780 | -5/Garrison | Triggered checkpoint 15797 | -5/Garrison | Triggered checkpoint 15853 | -5/Garrison | Found embedded Infiltrators 15894 | -5/Garrison | Discovered new exit (range 14) 16051 | -5/Garrison | Expanded RIF knowledge: Patrol Navigation 16083 | -5/Garrison | Discovered new exit (range 10) 16084 | -5/Garrison | Triggered checkpoint 16348 | -5/Garrison | Discovered new exit (range 10) 16412 | -5/Garrison | Spotted B-86 Titan 16611 | -5/Garrison | Entered Factory 16611 | -4/Factory | Evolved 2 slots: Power x1, Utility x1 16661 | -4/Factory | Identified exit to Garrison 16995 | -4/Factory | Entered Garrison 17122 | -4/Garrison | Destroyed 8 combat bots 17129 | -4/Garrison | Lost 6 parts (2p1n2u1w) 17500 | -4/Garrison | Garrison Relay disabled 17509 | -4/Garrison | Triggered checkpoint 17561 | -4/Garrison | Lost 4 allies 17669 | -4/Garrison | Triggered checkpoint 17697 | -4/Garrison | Triggered checkpoint 17755 | -4/Garrison | Triggered checkpoint 17870 | -4/Garrison | Spotted Striker 17904 | -4/Garrison | Discovered new exit (range 10) 17956 | -4/Garrison | Spotted B-90 Cyclops 17968 | -4/Garrison | Rewired B-75 Beast 17976 | -4/Garrison | Destroyed B-90 Cyclops 18134 | -4/Garrison | Triggered checkpoint 18226 | -4/Garrison | Discovered new exit (range 11) 18252 | -4/Garrison | Build established: Scavenger-Gunner 18303 | -4/Garrison | Found Gamma Bomb Array 18321 | -4/Garrison | Found Gamma Bomb Array 18565 | -4/Garrison | Expanded RIF knowledge: Code Merge 18594 | -4/Garrison | Discovered new exit (range 10) 18633 | -4/Garrison | Entered Research 18633 | -3/Research | Accompanied by 1 ally 18633 | -3/Research | Evolved 2 slots: Propulsion x1, Weapon x1 18833 | -3/Research | Revision forces began assault on 0b10 18918 | -3/Research | Met up with Revision 17++ 18961 | -3/Research | Build established: Scavenger-Tank 19008 | -3/Research | Identified exit to Garrison 19251 | -3/Research | Entered Garrison 19299 | -3/Garrison | Expanded RIF knowledge: Program Shield 19319 | -3/Garrison | Triggered checkpoint 19591 | -3/Garrison | Triggered checkpoint 19612 | -3/Garrison | Triggered checkpoint 19677 | -3/Garrison | Triggered checkpoint 19743 | -3/Garrison | Found embedded Infiltrators 19788 | -3/Garrison | Discovered new exit (range 13) 19807 | -3/Garrison | Triggered checkpoint 19922 | -3/Garrison | Discovered new exit (range 14) 19922 | -3/Garrison | Discovered new exit (range 59) 19922 | -3/Garrison | Discovered new exit (range 84) 20133 | -3/Garrison | Spotted B-75 Beast 20157 | -3/Garrison | Destroyed B-75 Beast 20228 | -3/Garrison | Rewired B-90 Cyclops 20291 | -3/Garrison | Entered Research 20291 | -2/Research | Accompanied by 1 ally 20291 | -2/Research | Evolved 2 slots: Utility x2 20369 | -2/Research | Identified exit to Garrison 20374 | -2/Research | Garrison activated, responded to threat 20398 | -2/Research | Entered Garrison 20473 | -2/Garrison | Spotted B-90 Cyclops 20480 | -2/Garrison | Triggered checkpoint 20510 | -2/Garrison | Destroyed B-90 Cyclops 20583 | -2/Garrison | Garrison Relay disabled 20649 | -2/Garrison | Expanded RIF knowledge: Hotswap 20667 | -2/Garrison | Build established: Botlord-Tank 20815 | -2/Garrison | Found embedded Infiltrators 20844 | -2/Garrison | Triggered checkpoint 20854 | -2/Garrison | Spotted B-90 Cyclops 20879 | -2/Garrison | Destroyed B-90 Cyclops 20884 | -2/Garrison | Triggered checkpoint 20916 | -2/Garrison | Triggered checkpoint 21025 | -2/Garrison | Lost 3 allies 21118 | -2/Garrison | Discovered new exit (range 5) 21144 | -2/Garrison | Triggered checkpoint 21172 | -2/Garrison | Learned Research security intel 21374 | -2/Garrison | Discovered new exit (range 8) 21482 | -2/Garrison | Triggered checkpoint 21583 | -2/Garrison | Triggered checkpoint 21602 | -2/Garrison | Discovered new exit (range 12) 21709 | -2/Garrison | Entered Research 21709 | -2/Research | Accompanied by 1 ally 21991 | -2/Research | Spotted B-90 Cyclops 22021 | -2/Research | Destroyed B-90 Cyclops 22058 | -2/Research | Destroyed 7 combat bots 22341 | -2/Research | System corruption reached 10% 22436 | -2/Research | Build established: Scavenger-Tank 22459 | -2/Research | First assault squad dispatched 22603 | -2/Research | Spotted B-90 Cyclops 22629 | -2/Research | Destroyed B-90 Cyclops 22929 | -2/Research | Identified exit to Garrison 22929 | -2/Research | Entered Garrison 22929 | -2/Garrison | Accompanied by 2 allies 22957 | -2/Garrison | Triggered checkpoint 23011 | -2/Garrison | Triggered checkpoint 23028 | -2/Garrison | Garrison Relay disabled 23177 | -2/Garrison | Discovered new exit (range 33) 23177 | -2/Garrison | Discovered new exit (range 64) 23177 | -2/Garrison | Discovered new exit (range 87) 23238 | -2/Garrison | Spotted B-90 Cyclops 23243 | -2/Garrison | Assimilated Cyclops 9a with formatsys_high 23244 | -2/Garrison | Triggered checkpoint 23247 | -2/Garrison | Triggered checkpoint 23299 | -2/Garrison | Lost 6 allies 23332 | -2/Garrison | Lost 5 parts (1n2u2w) 23336 | -2/Garrison | Destroyed 14 combat bots 23381 | -2/Garrison | Triggered checkpoint 23576 | -2/Garrison | Garrison Relay disabled 23578 | -2/Garrison | Garrison Relay disabled 23856 | -2/Garrison | Expanded RIF knowledge: Command Fork 24085 | -2/Garrison | Triggered checkpoint 24181 | -2/Garrison | Entered Access 24181 | -1/Access | Evolved 2 slots: Utility x1, Weapon x1 24219 | -1/Access | Energy Cycler disabled 24491 | -1/Access | Build established: Scavenger-Executioner 24681 | -1/Access | First assault squad dispatched 24733 | -1/Access | Destroyed 12 combat bots 24744 | -1/Access | System corruption reached 10% 24773 | -1/Access | Identified exit to Garrison 24796 | -1/Access | Entered Garrison 24814 | -1/Garrison | Triggered checkpoint 24870 | -1/Garrison | Expanded RIF knowledge: Coupler Efficiency 24992 | -1/Garrison | Lost 3 parts (1p1u1w) 24995 | -1/Garrison | Destroyed 8 combat bots 25065 | -1/Garrison | Triggered checkpoint 25129 | -1/Garrison | Spotted B-99 Colossus 25129 | -1/Garrison | Spotted B-99 Colossus 25173 | -1/Garrison | Destroyed B-99 Colossus 25192 | -1/Garrison | Found Prototype Ballistic Gun 25192 | -1/Garrison | Identified Multirail 25196 | -1/Garrison | Found Multirail 25284 | -1/Garrison | Destroyed B-99 Colossus 25373 | -1/Garrison | Found Multirail 25379 | -1/Garrison | Found Multirail 25534 | -1/Garrison | Spotted B-99 Colossus 25534 | -1/Garrison | Triggered checkpoint 25578 | -1/Garrison | Triggered checkpoint 25595 | -1/Garrison | Destroyed 9 combat bots 25624 | -1/Garrison | Destroyed B-99 Colossus 25659 | -1/Garrison | Lost 20 parts (2p4n7u7w) 25668 | -1/Garrison | Triggered checkpoint 25697 | -1/Garrison | Found Multirail 25715 | -1/Garrison | Lost 3 parts (3w) 25717 | -1/Garrison | Found Multirail 25838 | -1/Garrison | Found Hvy. Reflective Plating 26056 | -1/Garrison | Triggered checkpoint 26056 | -1/Garrison | Garrison Relay disabled 26177 | -1/Garrison | Triggered checkpoint 26243 | -1/Garrison | Discovered new exit (range 10) 26418 | -1/Garrison | System corruption reached 30% 26446 | -1/Garrison | Destroyed 12 combat bots 26539 | -1/Garrison | Entered Access 27289 | -1/Access | First assault squad dispatched 27424 | -1/Access | Destroyed 7 combat bots 27597 | -1/Access | Spotted B-99 Colossus 27597 | -1/Access | Spotted B-99 Colossus 27680 | -1/Access | Destroyed B-99 Colossus 27746 | -1/Access | Destroyed B-99 Colossus 27770 | -1/Access | Lost 15 parts (1p3n4u7w) 27782 | -1/Access | Found Multirail 27786 | -1/Access | Found Multirail 27859 | -1/Access | Found Multirail 27871 | -1/Access | Found Multirail 27920 | -1/Access | Discovered new exit (range 3) 27925 | -1/Access | Entered Command 27925 | -1/Command | Accompanied by 1 ally 28425 | -1/Command | First assault squad dispatched 28622 | -1/Command | Core integrity fell below 50% 28639 | -1/Command | Destroyed 11 combat bots 28775 | -1/Command | Spotted Combat Programmer 28777 | -1/Command | Spotted Combat Programmer 28791 | -1/Command | Spotted M Guard 28793 | -1/Command | Spotted M Guard 28802 | -1/Command | Destroyed Combat Programmer 28837 | -1/Command | Destroyed Combat Programmer 28859 | -1/Command | Destroyed M Guard 28872 | -1/Command | Destroyed M Guard 28872 | -1/Command | All MAIN.C guards destroyed 28895 | -1/Command | Lost 16 parts (3p3n3u7w) 29066 | -1/Command | Build established: Scavenger-Tank 29089 | -1/Command | Lost 3 parts (1n1u1w) 29168 | -1/Command | Destroyed 8 combat bots 29168 | -1/Command | Met MAIN.C 29223 | -1/Command | Hacked MAIN.C using A7's code 29247 | -1/Command | Core integrity fell below 20% 29267 | -1/Command | Destroyed by G-73 Enforcer with Phase Gun Last Messages --------------- 29223_ Injected code into MAIN.C system. [Achievement: Poison In The Code] 29224_ Dropped Adv. Remote Datajack. 29224_ MAIN.C reaction time slowed by virus. 29226_ System corrupted: Energy discharge (-22). 29237_ C-45 Heavy ARC bursts open, deploying its payload. 29237_ G-73 Enforcer unfolds itself. 29241_ System corrupted: Matter fused (-5). 29245_ MAIN.C: "What did you do to me?!" 29245_ MAIN.C reaction time slowed by virus. 29245_ Slammed into MAIN.C. 29251_ Arm. Heavy Treads destroyed. 29258_ System corrupted: Component data lost. 29266_ Adv. Salvage Targeting Computer severed. 29266_ C-45 Heavy ARC bursts open, deploying its payload. 29266_ G-73 Enforcer unfolds itself. 29266_ M-36 Artificer unfolds itself. 29267_ MAIN.C reaction time slowed by virus. Map ----- +----------------------------------------------------+ | ?????????????????????????????????????????????????? | | ?????????????????????????????????????????????????? | | ?????????????????????????????????????????????????? | | ?????????????????????????????????????????????????? | | ?????????????????????????????????????????????????? | | ?????????????????????????????????????????????????? | | ?????????????????????????????????????????????????? | | ?????????????????????????????????????????????????? | | ???????????????????????????????????????????????#?? | | ??????????????????????????????????????????????? ?? | | ??????????????????????????????????????????????? ?? | | ??????????????????????????????????????????????? ?? | | ??????????????????????????????????????????????? "" | | ??????????????????????????????????????????????? "" | | ##################????????????????????????????? "" | | ![=*!![= %[%[ #????????????????????????????# | | !![==[! = *[!=== #????????????????????????????# | | !!*][*! [!![%!= #????????????????????????????# | | ##############= #????????????????????????????# | | ?????????????# #??????##?###????????????????# | | ?????????????# ##?##### ## ##?#####?#####???# ? | | ?????????????# |T#?# ## ### #?# #???# ? | | ?????????????#;//#### ### l ## gW### #####+## | | ?????????????# MMM W ggW g% + | | ?????????????# MMM i gg + | | ?????????????# MMM @g% m k + | | ?????????????# + | | ?????????????# + | | ?????????????# ### ### W ### # ####### | | ?????????????######?# #?# # ### #?????# | | ????????????????????#####?###### #### # ###?????# | | ???????????????????????????## #### #### #??????# | | ???????????????????????????#### ## # # ##??????# | | ????????????????????????????# ##### #???????# | | ????????????????????????????## ### ##???????# | | ?????????????????????????????### # # #????????# | | ???????????????????????????????# ### # ????????# | | ???????????????????????????????###??##? #???????# | | ???????????????????????????????????????##???????# | | ????????????????????????????????????????????????? | | ????????????????????????????????????????????????? | | ????????????????????????????????????????????????? | | ?????????????????????????????????????????????????? | | ?????????????????????????????????????????????????? | | ?????????????????????????????????????????????????? | | ?????????????????????????????????????????????????? | | ?????????????????????????????????????????????????? | | ?????????????????????????????????????????????????? | | ?????????????????????????????????????????????????? | | ?????????????????????????????????????????????????? | +----------------------------------------------------+ Best States ------------- Heat Dissipation 133 Coolant Potential 100 Energy Generation 65 Energy Capacity 1200 Matter Stores 550 Matter Capacity 700 Sight Range 16 Terrain Scan Density 10 Jamming Range 12 EM Shielding 3 Armor Coverage 1650 Resistance: KI 30 Resistance: TH 25 Core Shielding 30 Utility Shielding 66 Point Defense Rating 240 Weapon Cycling 20 Phase Shifting 15 Evasion (%) 55 Targeting Accuracy 8 Core Analysis 8 Recoil Reduction 6 Energy Filtering 30 Kinecelleration 50 Salvage Targeting 3 Relay Coupler Types 3 Relay Coupler Value 67 Authchip Count 2 Item Schematics ----------------- Huge Storage Unit | -10/Materials | Hacked Hacking Suite | -9/Materials | Scanalyzed Lgt. Armor Plating | -9/Materials | Scanalyzed Spread Laser | -9/Recycling | Hacked Minigun | -9/Recycling | Hacked Med. Armor Plating | -7/Factory | Scanalyzed Robot Schematics ------------------ M-13 Machinist | -10/Materials | Hacked Fabricated ------------ Hvy. Gauss Cannon | x2 | -7/Factory | Preloaded M-13 Machinist | x1 | -5/Factory | Authchip Repaired ---------- Nothing Studied --------- Com. Wheel | -9/Materials | Hacked Rocket Launcher | -9/Materials | Hacked Hvy. Assault Rifle | -7/Factory | Hacked KE Penetrator | -3/Research | Hacked Alien Tech Used ----------------- None Achievements -------------- Like A Rock Poison In The Code RIFT Wizard Challenges ------------ None Game ------ Seed GuidedElectronSource Manual? 0 Play Time 07:54:08 Cumulative 303.8 hours Start 2026.06.28 @ 20:57:29 End 2026.07.04 @ 13:09:42 Sessions 45 Manual Loads 0 Difficulty Rogue Special Mode None Game No. 120 Rogue 115 Adventurer 5 Explorer 0 Win Type - Total 8 Types 4/0/2/1/0/0/0/0/0/1 Lore% 74 Gallery% 71 Achievement% 65 Wizard Run 0 Options --------- Layout 1 ASCII 0 Keyboard 0 Movement Numpad Keybinds 0 Fullscreen 1 Font 24/Smallcaps Map View 50x35 Zoom Use 0% Tactical HUD 1 Map Filters NONE Filters NONE Steam 1 RUN: 8717a8ca-a225-48e4-b778-b6387e0c43bc